Workbook

Sheet 纯化产品
A1: 单位/课题组 | C1: 负责销售 | E1: 日期
A3: 免疫（共）沉淀产品
A4: 应用 | B4: 产品特点 | C4: 货号 | D4: 产品 | E4: 产品目录价 | F4: 勾选
A5: 免疫沉淀初学者试剂盒 | B5: 提供了CO-IP实验所必需nProtein A Sepharose 4 FF和Protein G Sepharose 4FF，以及详细的CO-IP操作方法，非常适合新接触的科学家快速获得高质量的实验结果。 | C5: 17600235 | D5: IMMUNOPRECIP STARTER PACK | E5: ￥6066 | F5: □
A6: 经典免疫(共)沉淀琼脂糖 | B6: 与下游分析技术兼容，例如质谱分析，WB | C6: 17528001 | D6: NPROTEIN A SEPHAROSE 4 FF 5ML | E6: ￥5508 | F6: □
B7: 样品载量高，每ml分别可结合人IgG 35mg(nProtein A)/18ml(Protein G) | C7: 17127901 | D7: RPROTEIN A SEPHAROSE FF 5 ML | E7: ￥5814 | F7: □
B8: 可与28913567搭配使用 | C8: 17061801 | D8: PROTEIN G SEPHAROSE 4 FF, 5 ML | E8: ￥5985 | F8: □
A9: 免疫(共)沉淀加速方案 | B9: 预装小柱，重复性好 | C9: 28903132 | D9: Protein A HP SpinTrap | E9: ￥2259 | F9: □
B10: 在离心或自动化系统中实现高通量IP，加速实验进程 | C10: 28903134 | D10: Protein G HP SpinTrap | E10: ￥2529 | F10: □
B11: 可与28913567搭配使用 | C11: 28408347 | D11: Ab SpinTrap | E11: ￥7020 | F11: □
C12: 28903133 | D12: Protein A HP MultiTrap | E12: ￥20448 | F12: □
C13: 28903135 | D13: Protein G HP MultiTrap | E13: ￥23607 | F13: □
A14: 免疫(共)沉淀加速方案缓冲液试剂盒 | B14: 提供两种灵活的步骤，经典方法与交联化方法；消除耗时的溶液配制，洗脱条件为下游实验而优化，兼容性好 | C14: 28913567 | D14: Protein A_G HP SpinTrap Buffer kit | E14: ￥3240 | F14: □
B15: 10*储备液包含结合液和洗脱液及Ready to use的中和液，适合HiTrap Columns, SpinTrap Columns | C15: 28903059 | D15: Ab Buffer kit | E15: ￥1503 | F15: □
A16: 生物素Biotin标签纯化和富集 | B16: 快速富集目标蛋白 适用于蛋白互作研究 洗脱条件为下游实验而优化，兼容性好 | C16: 28913568 | D16: Streptavidin HP SpinTrap Buffer kit | E16: ￥3240 | F16: □
A17: 白蛋白、IgG去除 | B17: Protein G片段及HAS结合蛋白配基 | C17: 28948020 | D17: Albumin IgG Depletion SpinTrap | E17: ￥7353 | F17: □
B18: Protein G片段及HAS结合蛋白配基 | C18: 28946603 | D18: HiTrap Albumin IgG Depl,2x1 ml | E18: ￥10980 | F18: □
A26: 标签蛋白纯化产品
A27: 应用 | B27: 产品特点 | C27: 货号 | D27: 产品 | E27: 产品目录价 | F27: 勾选
A28: His标签蛋白纯化填料 | B28: 可与金属作用的蛋白、脂类、核苷酸，Ni2+脱落极低 | C28: 17526801 | D28: Ni Sepharose HP, 25 ml | E28: ￥3888 | F28: □
C29: 17526802 | D29: Ni Sepharose HP, 100 ml | E29: ￥13779 | F29: □
B30: 适合大规模His 重组蛋白纯化 | C30: 17531806 | D30: Ni Sepharose 6 FF, 5 ml | E30: ￥837 | F30: □
C31: 17531801 | D31: Ni Sepharose 6 FF, 25ml | E31: ￥3456 | F31: □
C32: 17531802 | D32: Ni Sepharose 6 FF, 100ml | E32: ￥11799 | F32: □
B33: 当纯度比收率重要时,方便的从未澄清的细胞裂解液中纯化组氨酸标签蛋白 | C33: 28957499 | D33: TALON Superflow, 10 ml | E33: ￥1998 | F33: □
C34: 28957502 | D34: TALON Superflow, 50 ml | E34: ￥8550 | F34: □
B35: 直接纯化含EDTA的样品Ni离子脱落低，无需 脱Ni进行NaOH彻底清洗 | C35: 17371201 | D35: Ni Sepharose excel, 25 ml | E35: ￥4059 | F35: □
C36: 17371202 | D36: Ni Sepharose excel, 100 ml | E36: ￥14913 | F36: □
A37: His标签蛋白纯化预装柱 | B37: 组氨酸标签蛋白。HisTrap HP是预装Ni Sepharose HP 填料 | C37: 29051021 | D37: HisTrap HP 1 × 1 ml | E37: ￥549 | F37: □
C38: 17524701 | D38: HisTrap HP 5 × 1 ml | E38: ￥2043 | F38: □
C39: 17524801 | D39: HisTrap HP 1 × 5 ml | E39: ￥1737 | F39: □
C40: 17524802 | D40: HisTrap HP 5 × 5 ml | E40: ￥6777 | F40: □
B41: 高动态载量，低配基脱落，稳定性好 | C41: 17531901 | D41: HisTrap FF 5 × 1 ml | E41: ￥1791 | F41: □
C42: 17525501 | D42: HisTrap FF 5 × 5 ml | E42: ￥6138 | F42: □
B43: 组氨酸标签蛋白，较高载量，极低Ni离子脱 落，适合纯化真核细胞外分泌表达的组氨酸 标签蛋白 | C43: 29048586 | D43: HisTrap excel 1 x 1 ml | E43: ￥621 | F43: □
C44: 17371205 | D44: HisTrap excel 5 x 1 ml | E44: ￥2385 | F44: □
C45: 17371206 | D45: HisTrap excel 5 x 5 ml | E45: ￥8199 | F45: □
A46: GST标签蛋白纯化预装柱 | B46: 谷胱甘肽S-转移酶（GST）标签蛋白，用pGEX系列表达载体表达，高分辨率 | C46: 17528101 | D46: GSTrap HP 5 × 1 ml | E46: ￥3960 | F46: □
C47: 17528201 | D47: GSTrap HP 1 × 5 ml | E47: ￥3843 | F47: □
C48: 17528202 | D48: GSTrap HP 5 × 5 ml | E48: ￥15462 | F48: □
B49: 谷胱甘肽S-转移酶（GST）标签蛋白，用pGEX系列表达载体表达 | C49: 17513002 | D49: GSTrap FF 2 × 1 ml | E49: ￥1809 | F49: □
C50: 17513001 | D50: GSTrap FF 5 × 1 ml | E50: ￥3564 | F50: □
C51: 17513101 | D51: GSTrap FF 1 × 5ml | E51: ￥3438 | F51: □
C52: 17513102 | D52: GSTrap FF 5 × 5ml | E52: ￥13752 | F52: □
B53: 谷胱甘肽S-转移酶（GST）标签蛋白，用pGEX系列表达载体表达 | C53: 29048609 | D53: GSTrap 4B 1 × 1 ml | E53: ￥990 | F53: □
C54: 28401745 | D54: GSTrap 4B 5 × 1 ml | E54: ￥3825 | F54: □
C55: 28401747 | D55: GSTrap 4B 1 × 5 ml | E55: ￥3582 | F55: □
C56: 28401748 | D56: GSTrap 4B 5 × 5ml | E56: ￥14337 | F56: □
A57: GST 标签蛋白纯化填料 | B57: 含谷胱甘肽S- 转移酶的重组融合蛋白或依赖S-转移酶或谷胱甘肽的蛋白 | C57: 17527901 | D57: Glutathione Sepharose HP，25 ml | E57: ￥7686 | F57: □
C58: 17527902 | D58: Glutathione Sepharose HP，100 ml | E58: ￥24948 | F58: □
C59: 17513201 | D59: Glutathione Sepharose 4 FF， 25 ml | E59: ￥6273 | F59: □
C60: 17513202 | D60: Glutathione Sepharose 4 FF， 100 ml | E60: ￥19863 | F60: □
C61: 17075601 | D61: Glutathione Sepharose 4B，25 ml | E61: ￥3033 | F61: □
C62: 17075605 | D62: Glutathione Sepharose 4B，100 ml | E62: ￥18351 | F62: □

Sheet WB
A1: 单位/课题组 | D1: 负责销售 | F1: 日期
A3: GE蛋白电泳免疫印迹产品系列
A4: 实验步骤 | B4: GE提供的产品和及方案 | C4: 中文介绍 | D4: 货号 | E4: 产品 | F4: 产品目录价格 | G4: 勾选
A5: 样品制备 | B5: 样品制备试剂盒 | C5: 蛋白样品浓度定量试剂盒 | D5: 80648356 | E5: =VLOOKUP(D5,'[1]Dealer price- consumable'!A:D,4,) -> 2-D QUANT KIT | F5: ￥3735 | G5: □
C6: SDS-PAGE电泳样品去盐除杂试剂盒 | D6: 80648470 | E6: =VLOOKUP(D6,'[1]Dealer price- consumable'!A:D,4,) -> SDS-PAGE CLEAN-UP KIT | F6: ￥3618 | G6: □
C7: 1D/2D蛋白样品除杂试剂盒 | D7: 80648451 | E7: =VLOOKUP(D7,'[1]Dealer price- consumable'!A:D,4,) -> 2-D CLEAN-UP KIT | F7: ￥3474 | G7: □
C8: 蛋白酶抑制剂混合物 | D8: 80650123 | E8: =VLOOKUP(D8,'[1]Dealer price- consumable'!A:D,4,) -> PROTEASE INHIBITOR MIX | F8: ￥3051 | G8: □
C9: 核酸酶混合物（用于去除样品中的核酸） | D9: 80650142 | E9: =VLOOKUP(D9,'[1]Dealer price- consumable'!A:D,4,) -> NUCLEASE MIX | F9: ￥1350 | G9: □
C10: 样品研磨试剂盒（用于裂解组织和细胞） | D10: 80648337 | E10: =VLOOKUP(D10,'[1]Dealer price- consumable'!A:D,4,) -> SAMPLE GRINDING KIT | F10: ￥4518 | G10: □
C11: 哺乳动物细胞蛋白抽提缓冲液试剂盒 | D11: 28941279 | E11: =VLOOKUP(D11,'[1]Dealer price- consumable'!A:D,4,) -> Mammalian Cell Lysis Buffer | F11: ￥1233 | G11: □
C12: 酵母蛋白抽提缓冲液试剂盒 | D12: 28944045 | E12: =VLOOKUP(D12,'[1]Dealer price- consumable'!A:D,4,) -> Yeast Buffer Kit | F12: ￥1800 | G12: □
C13: 蛋白抽提缓冲液试剂盒（干粉，避免氨基甲酰化） | D13: 28943528 | E13: =VLOOKUP(D13,'[1]Dealer price- consumable'!A:D,4,) -> 2-DProteinExtractionBufferVI | F13: ￥1098 | G13: □
C14: 蛋白抽提缓冲液试剂盒（含6种缓冲液，便于方法开发） | D14: 28943522 | E14: =VLOOKUP(D14,'[1]Dealer price- consumable'!A:D,4,) -> Extraction Buffer Trial Kit | F14: ￥2601 | G14: □
C15: 蛋白样品预分级试剂盒 | D15: 80650104 | E15: =VLOOKUP(D15,'[1]Dealer price- consumable'!A:D,4,) -> 2-D FRACTIONATION KIT | F15: ￥5607 | G15: □
C16: PD10脱盐层析柱 | D16: 17085101 | E16: =VLOOKUP(D16,'[1]Dealer price- consumable'!A:D,4,) -> COLUMN PD 10 | F16: ￥3213 | G16: □
C17: PD SpinTrap G-25微量样品脱盐柱 | D17: 28918004 | E17: =VLOOKUP(D17,'[1]Dealer price- consumable'!A:D,4,) -> PD SpinTrap G-25 | F17: ￥3609 | G17: □
B18: 超滤离心管 | C18: 专利的dead-stop样品安全保护技术，防止意外甩干；采用超低吸附的PES材质滤膜，蛋白回收率高达95% | D18: 28932237 | E18: =VLOOKUP(D18,'[1]Dealer price- consumable'!A:D,4,) -> Vivaspin 500, 100 kDa MWCO PES | F18: ￥954 | G18: □
D19: 28932235 | E19: =VLOOKUP(D19,'[1]Dealer price- consumable'!A:D,4,) -> Vivaspin 500, 30 kDa MWCO PES | F19: ￥954 | G19: □
D20: 28932225 | E20: =VLOOKUP(D20,'[1]Dealer price- consumable'!A:D,4,) -> Vivaspin 500, 10 kDa MWCO PES | F20: ￥954 | G20: □
D21: 28932218 | E21: =VLOOKUP(D21,'[1]Dealer price- consumable'!A:D,4,) -> Vivaspin 500, 3 kDa MWCO PES | F21: ￥954 | G21: □
B22: 免疫磁珠与磁力架 | C22: 磁珠 | D22: 28944006 | E22: =VLOOKUP(D22,'[1]Dealer price- consumable'!A:D,4,) -> Protein A Mag Sepharose 1x500ul | F22: ￥1908 | G22: □
C23: 磁珠 | D23: 28944008 | E23: =VLOOKUP(D23,'[1]Dealer price- consumable'!A:D,4,) -> Protein G Mag Sepharose 1 x 500ul | F23: ￥1890 | G23: □
C24: 磁珠 | D24: 29102949 | E24: Sera-MagSpeedBead ProA/G 1mL | F24: ￥1730 | G24: □
C25: Mag Rack六位磁力架(6*1.5ml样品) | D25: 28948964 | E25: =VLOOKUP(D25,'[1]Dealer price- consumable'!A:D,4,) -> Mag Rack 6 | F25: ￥3519 | G25: □
B26: 超低蛋白吸附过滤器和滤膜 | C26: Whatman Spartan针式滤器RC膜0.2um | D26: 10463102 | E26: =VLOOKUP(D26,'[1]Dealer price- consumable'!A:D,4,) -> SPARTAN 13/0.2 RC 500/PK | F26: ￥8143 | G26: □
C27: Whatman Spartan针式滤器RC膜0.45um | D27: 10463030 | E27: =VLOOKUP(D27,'[1]Dealer price- consumable'!A:D,4,) -> SPARTAN 13/0.45 RC MT 100/PK | F27: ￥2108 | G27: □
C28: Whatman再生纤维素膜(RC)0.2um | D28: 10410312 | E28: =VLOOKUP(D28,'[1]Dealer price- consumable'!A:D,4,) -> RC58 0.2uM 47MM 100/PK | F28: ￥1864 | G28: □
C29: Whatman再生纤维素膜(RC)0.45um | D29: 10410212 | E29: =VLOOKUP(D29,'[1]Dealer price- consumable'!A:D,4,) -> RC55 0.45uM 47MM 100/PK | F29: ￥1864 | G29: □
C30: Whatman GV050/2玻璃真空过装置 47/50mm | D30: 10442200 | E30: =VLOOKUP(D30,'[1]Dealer price- consumable'!A:D,4,) -> GV050/2 GLASS VAC1 250ML 1/PK | F30: ￥6401 | G30: □
B31: 纯化柱与填料 | C31: His标签蛋白纯化、去垢剂筛选 | D31: 28401353 | E31: =VLOOKUP(D31,'[1]Dealer price- consumable'!A:D,4,) -> HIS SPINTRAP | F31: ￥4509 | G31: □
C32: 操作方式：离心机、工作站（96孔板）、重力 | D32: 28932171 | E32: =VLOOKUP(D32,'[1]Dealer price- consumable'!A:D,4,) -> His SpinTrap Kit | F32: ￥4527 | G32: □
D33: 29000593 | E33: =VLOOKUP(D33,'[1]Dealer price- consumable'!A:D,4,) -> His SpinTrap TALON | F33: ￥4842 | G33: □
D34: 28400990 | E34: =VLOOKUP(D34,'[1]Dealer price- consumable'!A:D,4,) -> HIS MULTITRAP FF | F34: ￥10269 | G34: □
D35: 28400989 | E35: =VLOOKUP(D35,'[1]Dealer price- consumable'!A:D,4,) -> HIS MULTITRAP HP | F35: ￥10512 | G35: □
D36: 29000596 | E36: =VLOOKUP(D36,'[1]Dealer price- consumable'!A:D,4,) -> His MultiTrap TALON | F36: ￥11043 | G36: □
D37: 11003399 | E37: =VLOOKUP(D37,'[1]Dealer price- consumable'!A:D,4,) -> HIS GRAVITRAP | F37: ￥2790 | G37: □
D38: 28401351 | E38: =VLOOKUP(D38,'[1]Dealer price- consumable'!A:D,4,) -> HIS GRAVITRAP KIT | F38: ￥6003 | G38: □
D39: 29000594 | E39: =VLOOKUP(D39,'[1]Dealer price- consumable'!A:D,4,) -> His GraviTrap TALON | F39: ￥3015 | G39: □
D40: 11003400 | E40: =VLOOKUP(D40,'[1]Dealer price- consumable'!A:D,4,) -> HIS BUFFER KIT | F40: ￥1494 | G40: □
C41: GST标签蛋白纯化 | D41: 28952359 | E41: =VLOOKUP(D41,'[1]Dealer price- consumable'!A:D,4,) -> GST SpinTrap | F41: ￥5112 | G41: □
C42: 操作方式：离心机、工作站（96孔板）、重力 | D42: 28952360 | E42: =VLOOKUP(D42,'[1]Dealer price- consumable'!A:D,4,) -> GST GraviTrap | F42: ￥7380 | G42: □
D43: 27457001 | E43: =VLOOKUP(D43,'[1]Dealer price- consumable'!A:D,4,) -> GST Bulk Kit | F43: ￥8937 | G43: □
D44: 28952361 | E44: =VLOOKUP(D44,'[1]Dealer price- consumable'!A:D,4,) -> GST Buffer Kit | F44: ￥4734 | G44: □
D45: 28405500 | E45: =VLOOKUP(D45,'[1]Dealer price- consumable'!A:D,4,) -> GST MULTITRAP 4B | F45: ￥10872 | G45: □
C46: PD-10重力柱配套 | D46: 17043501 | E46: =VLOOKUP(D46,'[1]Dealer price- consumable'!A:D,4,) -> COLUMN PD-10,EMPTY | F46: ￥2160 | G46: □
D47: 18321603 | E47: =VLOOKUP(D47,'[1]Dealer price- consumable'!A:D,4,) -> LABMATE PD-10 BUFFER RESERVOIR | F47: ￥495 | G47: □
D48: 28923245 | E48: =VLOOKUP(D48,'[1]Dealer price- consumable'!A:D,4,) -> PD-10 Spin Adapter | F48: ￥225 | G48: □
C49: MultiTrap 96孔板 | D49: 28403943 | E49: =VLOOKUP(D49,'[1]Dealer price- consumable'!A:D,4,) -> COLLECTION PLATE | F49: ￥558 | G49: □
A50: 凝胶电泳 | B50: 荧光差异双向电泳 | F50: 询价 | G50: □
B51: 电源 | C51: EPS301电源 | D51: 18113001 | E51: EPS 301 POWER SUPPLY | F51: 询价 | G51: □
B52: 垂直电泳仪 | C52: miniVE迷你型垂直电泳仪 | D52: 80641877 | E52: miniVE迷你型垂直电泳仪 | F52: 询价 | G52: □
C53: SE250小型垂直电泳仪 | D53: 80614745 | E53: SE250小型垂直电泳仪 | F53: 询价 | G53: □
C54: SE260小型垂直电泳仪 | D54: 80614935 | E54: SE260小型垂直电泳仪 | F54: 询价 | G54: □
C55: SE600标准垂直电泳仪 | D55: 80647957 | E55: =VLOOKUP(D55,'[1]Dealer price- consumable'!A:D,4,) -> SE 600 RUBY, COMPLETE | F55: ￥23517 | G55: □
B56: 电泳试剂--灌胶/缓冲/染色 | C56: 丙烯酰胺干粉 | D56: 17130202 | E56: =VLOOKUP(D56,'[1]Dealer price- consumable'!A:D,4,) -> ACRYLAMIDE PAGE, 1000 G | F56: ￥2196 | G56: □
C57: 3% C N,N'-亚甲基双丙烯酰胺干粉 | D57: 17130402 | E57: =VLOOKUP(D57,'[1]Dealer price- consumable'!A:D,4,) -> METHYLENEBIS ACRYLAMIDE, 100 G | F57: ￥1239 | G57: □
C58: 过硫酸铵干粉 | D58: 17131101 | E58: =VLOOKUP(D58,'[1]Dealer price- consumable'!A:D,4,) -> AMMONIUM PERSULPHATE, 25 G | F58: ￥559 | G58: □
C59: TEMED溶液 | D59: 17131201 | E59: =VLOOKUP(D59,'[1]Dealer price- consumable'!A:D,4,) -> TEMED, 25 ML | F59: ￥477 | G59: □
C60: Tris三羟甲基氨基甲烷 | D60: 17132101 | E60: =VLOOKUP(D60,'[1]Dealer price- consumable'!A:D,4,) -> TRIS, 500 G | F60: ￥936 | G60: □
C61: Glycine甘氨酸 | D61: 17132301 | E61: =VLOOKUP(D61,'[1]Dealer price- consumable'!A:D,4,) -> GLYCINE, 500 G | F61: ￥559 | G61: □
C62: SDS十二烷基硫酸钠 | D62: 17131301 | E62: =VLOOKUP(D62,'[1]Dealer price- consumable'!A:D,4,) -> SDS 100 G | F62: ￥587 | G62: □
C63: 硝酸银染色试剂盒，极高灵敏度 | D63: 17115001 | E63: =VLOOKUP(D63,'[1]Dealer price- consumable'!A:D,4,) -> SILVER STAINING KIT, PROTEIN | F63: ￥1953 | G63: □
B64: 蛋白分子量标准Marker | C64: 低分子量范围（3500~38000）彩虹Marker | D64: RPN755E | E64: Amersham ECL Rainbow Marker 250 UL | F64: ￥2173 | G64: □
C65: 高分子量范围（12000~225000）彩虹Marker | D65: RPN756E | E65: Amersham ECL Rainbow Marker 250 UL | F65: ￥1518 | G65: □
C66: 全分子量范围（12000~225000）彩虹Marker | D66: RPN800E | E66: Amersham ECL Rainbow Marker 250 UL | F66: ￥1590 | G66: □
C67: ECL DualVue免疫印迹标准Marker | D67: RPN810 | E67: =VLOOKUP(D67,'[1]Dealer price- consumable'!A:D,4,) -> ECL DUALVUE WESTERN MARKERS | F67: ￥1690 | G67: □
C68: ECL Plex FL彩虹荧光蛋白分子量标准Marker(12000~225000) | D68: RPN850E | E68: =VLOOKUP(D68,'[1]Dealer price- consumable'!A:D,4,) -> ECL PLEX FL RAINBOWS 120 UL | F68: ￥445 | G68: □
C69: ECL Plex FL彩虹荧光蛋白分子量标准Marker(12000~225000) | D69: RPN851E | E69: =VLOOKUP(D69,'[1]Dealer price- consumable'!A:D,4,) -> ECL PLEX FL RAINBOWS 500 UL | F69: ￥1518 | G69: □
A70: 转膜 | B70: 印迹滤纸 | C70: Whatman 3MM印迹滤纸 | D70: 3030-704 | E70: =VLOOKUP(D70,'[1]Dealer price- consumable'!A:D,4,) -> 3MM CHR 27CMX100M 1RL/PK | F70: ￥2646 | G70: □
D71: 3030-681 | E71: =VLOOKUP(D71,'[1]Dealer price- consumable'!A:D,4,) -> 3MM CHR 15CMx100M 1RL/PK | F71: ￥1638 | G71: □
D72: 3030-675 | E72: =VLOOKUP(D72,'[1]Dealer price- consumable'!A:D,4,) -> 3MM CHR 12.5CMx100M 1RL/PK | F72: ￥2196 | G72: □
D73: 3030-861 | E73: =VLOOKUP(D73,'[1]Dealer price- consumable'!A:D,4,) -> 3MM CHR 20X20CM 100/PK | F73: ￥422 | G73: □
D74: 3030-917 | E74: =VLOOKUP(D74,'[1]Dealer price- consumable'!A:D,4,) -> 3MM CHR 46X57CM 100/PK | F74: ￥3276 | G74: □
C75: Amersham GB印迹滤纸 1.5mm厚 | D75: 10426994 | E75: =VLOOKUP(D75,'[1]Dealer price- consumable'!A:D,4,) -> GB005 580x580MM 25/PK | F75: ￥4023 | G75: □
C76: Amersham"三明治"印迹膜/滤纸 | D76: 10600122 | E76: =VLOOKUP(D76,'[1]Dealer price- consumable'!A:D,4,) -> PVDF 0.2UM/3MM 80x90MM 10/PK | F76: ￥1197 | G76: □
D77: 10600121 | E77: =VLOOKUP(D77,'[1]Dealer price- consumable'!A:D,4,) -> PVDF 0.45UM/3MM 80x90MM 10/PK | F77: ￥1242 | G77: □
D78: 10600110 | E78: =VLOOKUP(D78,'[1]Dealer price- consumable'!A:D,4,) -> PVDF 0.45UM/3MM 140X160MM 10/PK | F78: ￥1728 | G78: □
D79: 10600116 | E79: =VLOOKUP(D79,'[1]Dealer price- consumable'!A:D,4,) -> PT 0.1UM/3MM 80X90MM 10/PK | F79: ￥1683 | G79: □
B80: 印迹膜记号笔 | D80: 10499001 | E80: =VLOOKUP(D80,'[1]Dealer price- consumable'!A:D,4,) -> MEMBRANE MARKING PEN 10/PK | F80: ￥679 | G80: □
B81: 密封式杂交袋 | D81: 10483064 | E81: =VLOOKUP(D81,'[1]Dealer price- consumable'!A:D,4,) -> REACTION FOLD. 203x254MM 50/PK | F81: ￥798 | G81: □
B82: 扁头镊子、印迹膜拾取用 | D82: 10477602 | E82: =VLOOKUP(D82,'[1]Dealer price- consumable'!A:D,4,) -> PZ001 SS TWEEZERS 1/PK | F82: ￥339 | G82: □
B83: NC膜 | C83: PT硝酸纤维素NC膜 | D83: 10600000 | E83: =VLOOKUP(D83,'[1]Dealer price- consumable'!A:D,4,) -> PT 0.1UM 300MMx4M 1/PK | F83: ￥3411 | G83: □
D84: 10600001 | E84: =VLOOKUP(D84,'[1]Dealer price- consumable'!A:D,4,) -> PT 0.2UM 300MMx4M 1/PK | F84: ￥3060 | G84: □
D85: 10600002 | E85: =VLOOKUP(D85,'[1]Dealer price- consumable'!A:D,4,) -> PT 0.45UM 300MMx4M 1/PK | F85: ￥2169 | G85: □
C86: PTP低背景硝酸纤维素NC膜 | D86: 10600003 | E86: =VLOOKUP(D86,'[1]Dealer price- consumable'!A:D,4,) -> PTP 0.45UM 300MMx4M 1/PK | F86: ￥2448 | G86: □
D87: 10600004 | E87: =VLOOKUP(D87,'[1]Dealer price- consumable'!A:D,4,) -> PTP 0.2UM 300MMx4M 1/PK | F87: ￥3762 | G87: □
C88: PTS 加强型硝酸纤维素NC膜 | D88: 10600016 | E88: =VLOOKUP(D88,'[1]Dealer price- consumable'!A:D,4,) -> PTS 0.45UM 300MMx4M 1/PK | F88: ￥2997 | G88: □
D89: 10600015 | E89: =VLOOKUP(D89,'[1]Dealer price- consumable'!A:D,4,) -> PTS 0.2UM 300MMx4M 1/PK | F89: ￥3717 | G89: □
B90: PVDF膜 | C90: Hybond P系列PVDF膜 | D90: 10600023 | E90: =VLOOKUP(D90,'[1]Dealer price- consumable'!A:D,4,) -> PVDF 0.45UM 300MMx4M 1/PK | F90: ￥2637 | G90: □
D91: 10600021 | E91: =VLOOKUP(D91,'[1]Dealer price- consumable'!A:D,4,) -> PVDF 0.2UM 260MMx4M 1/PK | F91: ￥3240 | G91: □
C92: 低荧光 PVDF膜 | D92: 10600022 | E92: PVDF LF 0.2UM 254MMx4M 1/PK | F92: ￥3852
B93: 转印仪 | C93: Amersham TE22槽式全湿电转印仪 | D93: 80620426 | F93: 询价 | G93: □
C94: Amersham TE62槽式全湿电转印仪 | D94: 80620958 | F94: 询价 | G94: □
C95: Amersham TE70半干电转印仪 | D95: 80621034 | F95: 询价 | G95: □
C96: Amersham TE77半干电转印仪 | D96: 80621186 | F96: 询价 | G96: □
C97: Amersham TE70PWR半干电转印仪 | D97: 11001341 | F97: 询价 | G97: □
C98: Amersham TE77PWR半干电转印仪 | D98: 11001342 | F98: 询价 | G98: □
A99: 免疫反应 | B99: Blocking试剂 | C99: 每包含 40g Blocking reagent，可完成>20次的小量Blocking实验，与ECL检测试剂配合使用效果更佳 | D99: RPN2125 | E99: =VLOOKUP(D99,'[1]Dealer price- consumable'!A:D,4,) -> ECL BLOCKING AGENT | F99: ￥688 | G99: □
D100: RPN418 | E100: =VLOOKUP(D100,'[1]Dealer price- consumable'!A:D,4,) -> ECL PRIME BLOCKING REAGENT | F100: ￥835 | G100: □
B101: conjugated antibodies | C101: Amersham ECL HRP标记鼠抗（羊血来源） | D101: NA931-1ML | E101: =VLOOKUP(D101,'[1]Dealer price- consumable'!A:D,4,) -> MOUSE IGG HRP LINKED WHOLE AB | F101: ￥3456 | G101: □
C102: Amersham ECL HRP标记人抗（羊血来源） | D102: NA933-1ML | E102: =VLOOKUP(D102,'[1]Dealer price- consumable'!A:D,4,) -> HUMAN IGG HRP LINKED WHOLE AB | F102: ￥4689 | G102: □
C103: Amersham ECL HRP标记兔抗（驴血来源） | D103: NA934-1ML | E103: =VLOOKUP(D103,'[1]Dealer price- consumable'!A:D,4,) -> RABBIT IGG HRP LINKED WHOLE AB | F103: ￥2709 | G103: □
C104: Amersham ECL HRP片段标记鼠抗（羊血来源） | D104: NA9310-1ML | E104: =VLOOKUP(D104,'[1]Dealer price- consumable'!A:D,4,) -> MOUSE IGG HRP LINKED F(AB)2 FRAGMENT | F104: ￥6390 | G104: □
C105: Amersham ECL HRP片段标记兔抗（驴血来源） | D105: NA9340-1ML | E105: =VLOOKUP(D105,'[1]Dealer price- consumable'!A:D,4,) -> RABBIT IGG HRP LINKED F(AB)2 FRAGMENT | F105: ￥3042 | G105: □
A106: 冷光检测/萤光发光检测 | B106: CyDye萤光标记试剂 | C106: Amersham ECL Plex IgG-Cy3萤光标记二抗（山羊-兔） | D106: 28901106 | E106: =VLOOKUP(D106,'[1]Dealer price- consumable'!A:D,4,) -> ECL Plex GaR IgG Cy3 150ug | F106: ￥2250 | G106: □
C107: Amersham ECL Plex IgG-Cy5萤光标记二抗（山羊-鼠） | D107: 25600305 | E107: ECL PLEX G-A-M IGG CY5 150UG | F107: 询价 | G107: □
C108: Amersham ECL Plex IgG-Cy3萤光标记二抗（山羊-鼠） | D108: 25600303 | E108: ECL PLEX G-A-M IGG CY3 150UG | F108: 询价 | G108: □
C109: Amersham ECL Plex IgG-Cy5萤光标记二抗（山羊-兔） | D109: 25600307 | E109: ECL PLEX G-A-R IGG CY5 150UG | F109: 询价 | G109: □
B110: ECL冷光试剂 | C110: ECL Start试剂 | D110: RPN3244 | E110: =VLOOKUP(D110,'[1]Dealer price- consumable'!A:D,4,) -> ECL start WB detection reagent - 400ml | F110: ￥2205 | G110: □
C111: ECL试剂 100mL | D111: RPN2209 | E111: =VLOOKUP(D111,'[1]Dealer price- consumable'!A:D,4,) -> ECL WESTERN BLOTTING DETECTION REAGENTS | F111: ￥2025 | G111: □
C112: ECL试剂 300mL | D112: RPN2106 | E112: =VLOOKUP(D112,'[1]Dealer price- consumable'!A:D,4,) -> ECL WESTERN BLOTTING REAGENTS | F112: ￥2790 | G112: □
C113: ECL Prime试剂 100mL | D113: RPN2232 | E113: =VLOOKUP(D113,'[1]Dealer price- consumable'!A:D,4,) -> ECL Prime Western Blotting Detection Reagent | F113: ￥2574 | G113: □
C114: ECL Prime试剂 300mL | D114: RPN2236 | E114: =VLOOKUP(D114,'[1]Dealer price- consumable'!A:D,4,) -> ECL Prime Western blot detection reagent | F114: ￥5391 | G114: □
C115: ECL Select试剂 100mL | D115: RPN2235 | E115: =VLOOKUP(D115,'[1]Dealer price- consumable'!A:D,4,) -> ECL Select WB detection reagent | F115: ￥3195 | G115: □
B116: Imager 680超灵敏化学发光成像仪 | F116: 询价 | G116: □
B117: ImageQuant LAS500一体化成像仪 | F117: 询价 | G117: □
A118: 凝胶图像分析 | B118: Hyperfilm胶片 | C118: Hyperfilm ECL胶片（5*7英寸） | D118: 28906835 | E118: =VLOOKUP(D118,'[1]Dealer price- consumable'!A:D,4,) -> Hyperfilm ECL 5x7 inches (50 shts) | F118: ￥2412 | G118: □
C119: Hyperfilm ECL胶片（18*24cm） | D119: 28906837 | E119: =VLOOKUP(D119,'[1]Dealer price- consumable'!A:D,4,) -> HYPERFILM ECL 18x24cm, 100shts | F119: ￥4824 | G119: □
C120: Hyperfilm ECL胶片（8*10英寸） | D120: 28906838 | E120: =VLOOKUP(D120,'[1]Dealer price- consumable'!A:D,4,) -> Hyperfilm ECL, 8x10 inches, 50 shts | F120: ￥2844 | G120: □
B121: Phosphorimaging Plate、压片盒 | C121: 压片盒，中性颜色，30*40cm | D121: RPN11644 | E121: =VLOOKUP(D121,'[1]Dealer price- consumable'!A:D,4,) -> HYPERCASSETTE (NEUTRAL) 30 X 40CM | F121: ￥4671 | G121: □
C122: 压片盒，中性颜色，8*10英寸 | D122: RPN11649 | E122: =VLOOKUP(D122,'[1]Dealer price- consumable'!A:D,4,) -> HYPERCASSETTE (NEUTRAL) 8X10 INCHES NEUTRAL COLOUR | F122: ￥3456 | G122: □
B123: ImageQuant TL软件 | F123: 询价 | G123: □

Sheet 匹配数据源 (hidden)
A1: 类型 | B1: 产品货号
A2: WB | B2: 80648356
A3: WB | B3: 80648470
A4: WB | B4: 80648451
A5: WB | B5: 80650123
A6: WB | B6: 80650142
A7: WB | B7: 80648337
A8: WB | B8: 28941279
A9: WB | B9: 28944045
A10: WB | B10: 28943528
A11: WB | B11: 28943522
A12: WB | B12: 80650104
A13: WB | B13: 17085101
A14: WB | B14: 28918004
A15: WB | B15: 28932237
A16: WB | B16: 28932235
A17: WB | B17: 28932225
A18: WB | B18: 28932218
A19: WB | B19: 28944006
A20: WB | B20: 28944008
A21: WB | B21: 29102949
A22: WB | B22: 28948964
A23: WB | B23: 10463102
A24: WB | B24: 10463030
A25: WB | B25: 10410312
A26: WB | B26: 10410212
A27: WB | B27: 10442200
A28: WB | B28: 28401353
A29: WB | B29: 28932171
A30: WB | B30: 29000593
A31: WB | B31: 28400990
A32: WB | B32: 28400989
A33: WB | B33: 29000596
A34: WB | B34: 11003399
A35: WB | B35: 28401351
A36: WB | B36: 29000594
A37: WB | B37: 11003400
A38: WB | B38: 28952359
A39: WB | B39: 28952360
A40: WB | B40: 27457001
A41: WB | B41: 28952361
A42: WB | B42: 28405500
A43: WB | B43: 17043501
A44: WB | B44: 18321603
A45: WB | B45: 28923245
A46: WB | B46: 28403943
A47: WB | B47: 18113001
A48: WB | B48: 80641877
A49: WB | B49: 80614745
A50: WB | B50: 80614935
A51: WB | B51: 80647957
A52: WB | B52: 17130202
A53: WB | B53: 17130402
A54: WB | B54: 17131101
A55: WB | B55: 17131201
A56: WB | B56: 17132101
A57: WB | B57: 17132301
A58: WB | B58: 17131301
A59: WB | B59: 17115001
A60: WB | B60: RPN755E
A61: WB | B61: RPN756E
A62: WB | B62: RPN800E
A63: WB | B63: RPN810
A64: WB | B64: RPN850E
A65: WB | B65: RPN851E
A66: WB | B66: 3030-704
A67: WB | B67: 3030-681
A68: WB | B68: 3030-675
A69: WB | B69: 3030-861
A70: WB | B70: 3030-917
A71: WB | B71: 10426994
A72: WB | B72: 10600122
A73: WB | B73: 10600121
A74: WB | B74: 10600110
A75: WB | B75: 10600116
A76: WB | B76: 10499001
A77: WB | B77: 10483064
A78: WB | B78: 10477602
A79: WB | B79: 10600000
A80: WB | B80: 10600001
A81: WB | B81: 10600002
A82: WB | B82: 10600003
A83: WB | B83: 10600004
A84: WB | B84: 10600016
A85: WB | B85: 10600015
A86: WB | B86: 10600023
A87: WB | B87: 10600021
A88: WB | B88: 10600022
A89: WB | B89: 80620426
A90: WB | B90: 80620958
A91: WB | B91: 80621034
A92: WB | B92: 80621186
A93: WB | B93: 11001341
A94: WB | B94: 11001342
A95: WB | B95: RPN2125
A96: WB | B96: RPN418
A97: WB | B97: NA931-1ML
A98: WB | B98: NA933-1ML
A99: WB | B99: NA934-1ML
A100: WB | B100: NA9310-1ML
A101: WB | B101: NA9340-1ML
A102: WB | B102: 28901106
A103: WB | B103: 25600305
A104: WB | B104: 25600303
A105: WB | B105: 25600307
A106: WB | B106: RPN3244
A107: WB | B107: RPN2209
A108: WB | B108: RPN2106
A109: WB | B109: RPN2232
A110: WB | B110: RPN2236
A111: WB | B111: RPN2235
A112: WB | B112: 28906835
A113: WB | B113: 28906837
A114: WB | B114: 28906838
A115: WB | B115: RPN11644
A116: WB | B116: RPN11649
A117: WB | B117: 17600235
A118: CO-IP | B118: 17528001
A119: CO-IP | B119: 17127901
A120: CO-IP | B120: 17061801
A121: CO-IP | B121: 28903132
A122: CO-IP | B122: 28903134
A123: CO-IP | B123: 28408347
A124: CO-IP | B124: 28903133
A125: CO-IP | B125: 28903135
A126: CO-IP | B126: 28913567
A127: CO-IP | B127: 28903059
A128: CO-IP | B128: 28913568
A129: CO-IP | B129: 28948020
A130: CO-IP | B130: 28946603
A131: CO-IP | B131: 17526801
A132: TAG | B132: 17526802
A133: TAG | B133: 17531806
A134: TAG | B134: 17531801
A135: TAG | B135: 17531802
A136: TAG | B136: 28957499
A137: TAG | B137: 28957502
A138: TAG | B138: 17371201
A139: TAG | B139: 17371202
A140: TAG | B140: 29051021
A141: TAG | B141: 17524701
A142: TAG | B142: 17524801
A143: TAG | B143: 17524802
A144: TAG | B144: 17531901
A145: TAG | B145: 17525501
A146: TAG | B146: 29048586
A147: TAG | B147: 17371205
A148: TAG | B148: 17371206
A149: TAG | B149: 17528101
A150: TAG | B150: 17528201
A151: TAG | B151: 17528202
A152: TAG | B152: 17513002
A153: TAG | B153: 17513001
A154: TAG | B154: 17513101
A155: TAG | B155: 17513102
A156: TAG | B156: 29048609
A157: TAG | B157: 28401745
A158: TAG | B158: 28401747
A159: TAG | B159: 28401748
A160: TAG | B160: 17527901
A161: TAG | B161: 17527902
A162: TAG | B162: 17513201
A163: TAG | B163: 17513202
A164: TAG | B164: 17075601
A165: TAG | B165: 17075605
A166: TAG | B166: 17075605

Sheet Dealer price- consumable (hidden)
A1: Product* | B1: Product | C1: Part # | D1: Description | E1: 2018 Modality | F1: 2018 PC | G1: 2018 PC Disc | H1: 2018 PG | I1: 2018 PG Disc | J1: 2018 China LLP (USD) | K1: 2018 China LLP (RMB) incl. VAT | L1: 2018 Device dealer price USD | M1: 2018 Device dealer price RMB | N1: 2018 Device dealer price RMB excl. VAT | O1: 2018 Discount% | P1: 2017 Modality | Q1: 2017 PC | R1: 2017 PC Disc | S1: 2017 PG | T1: 2017 PG Disc | U1: 2017 China LLP (USD) | V1: 2017 China LLP (RMB) incl. VAT | W1: 2017 Device dealer price USD | X1: Device dealer price RMB | Y1: Sold by device dealer (Yes/no) | Z1: Sold by consumable dealer (Yes/no) | AA1: Discount% | AB1: LP 2018 vs. 2017 | AC1: Dealer price 2018 vs. 2017 | AD1: Note | AE1: SVC
A2: =TRIM(B2) -> 17044801 | B2: 17044801 | C2: 17044801 | D2: CYTODEX 1 25 G | E2: 021 | F2: 12 | G2: MICROCARRIERS | H2: 274 | I2: Microcarriers | J2: 502 | K2: =J2*9.009 -> 4,523 | L2: =J2*O2 -> 427 | M2: =L2*9.009 -> 3,844 | N2: =M2/1.17 -> 3,286 | O2: =AA2 -> 85% | P2: 021 | Q2: 12 | R2: MICROCARRIERS | S2: 274 | T2: Microcarriers | U2: 502 | V2: 4,523 | W2: 427 | X2: 3,844 | Y2: No | Z2: Yes | AA2: =W2/U2 -> 85% | AB2: =J2/U2-1 -> 0% | AC2: =L2/W2-1 -> 0%
A3: =TRIM(B3) -> 17044802 | B3: 17044802 | C3: 17044802 | D3: CYTODEX 1 100 G | E3: 021 | F3: 12 | G3: MICROCARRIERS | H3: 274 | I3: Microcarriers | J3: 1,167 | K3: 10,514 | L3: 992 | M3: =L3*9.009 -> 8,936 | N3: =M3/1.17 -> 7,638 | O3: =AA3 -> 85% | P3: 021 | Q3: 12 | R3: MICROCARRIERS | S3: 274 | T3: Microcarriers | U3: 1,167 | V3: 10,514 | W3: 992 | X3: 8,936 | Y3: No | Z3: Yes | AA3: =W3/U3 -> 85% | AB3: 0% | AC3: 0%
A4: 17044803 | B4: 17044803 | C4: 17044803 | D4: CYTODEX 1 500 G | E4: 021 | F4: 12 | G4: MICROCARRIERS | H4: 274 | I4: Microcarriers | J4: 4,228 | K4: 38,090 | L4: 3,594 | M4: 32,377 | N4: 27,672 | O4: 85% | P4: 021 | Q4: 12 | R4: MICROCARRIERS | S4: 274 | T4: Microcarriers | U4: 4,228 | V4: 38,090 | W4: 3,594 | X4: 32,377 | Y4: No | Z4: Yes | AA4: 85% | AB4: 0% | AC4: 0%
A5: 17048501 | B5: 17048501 | C5: 17048501 | D5: CYTODEX 3 10 G | E5: 021 | F5: 12 | G5: MICROCARRIERS | H5: 274 | I5: Microcarriers | J5: 242 | K5: 2,180 | L5: 206 | M5: 1,853 | N5: 1,584 | O5: 85% | P5: 021 | Q5: 12 | R5: MICROCARRIERS | S5: 274 | T5: Microcarriers | U5: 242 | V5: 2,180 | W5: 206 | X5: 1,853 | Y5: No | Z5: Yes | AA5: 85% | AB5: 0% | AC5: 0%
A6: 17048502 | B6: 17048502 | C6: 17048502 | D6: CYTODEX 3 100 G | E6: 021 | F6: 12 | G6: MICROCARRIERS | H6: 274 | I6: Microcarriers | J6: 1,259 | K6: 11,342 | L6: 1,070 | M6: 9,641 | N6: 8,240 | O6: 85% | P6: 021 | Q6: 12 | R6: MICROCARRIERS | S6: 274 | T6: Microcarriers | U6: 1,259 | V6: 11,342 | W6: 1,070 | X6: 9,641 | Y6: No | Z6: Yes | AA6: 85% | AB6: 0% | AC6: 0%
A7: 17048503 | B7: 17048503 | C7: 17048503 | D7: CYTODEX 3 500 G | E7: 021 | F7: 12 | G7: MICROCARRIERS | H7: 274 | I7: Microcarriers | J7: 4,753 | K7: 42,820 | L7: 4,040 | M7: 36,397 | N7: 31,108 | O7: 85% | P7: 021 | Q7: 12 | R7: MICROCARRIERS | S7: 274 | T7: Microcarriers | U7: 4,753 | V7: 42,820 | W7: 4,040 | X7: 36,397 | Y7: No | Z7: Yes | AA7: 85% | AB7: 0% | AC7: 0%
A8: 17091101 | B8: 17091101 | C8: 17091101 | D8: CYTOPORE 1 20 G CYTOCELL | E8: 021 | F8: 12 | G8: MICROCARRIERS | H8: 274 | I8: Microcarriers | J8: 1,165 | K8: 10,495 | L8: 990 | M8: 8,921 | N8: 7,625 | O8: 85% | P8: 021 | Q8: 12 | R8: MICROCARRIERS | S8: 274 | T8: Microcarriers | U8: 1,165 | V8: 10,495 | W8: 990 | X8: 8,921 | Y8: No | Z8: Yes | AA8: 85% | AB8: 0% | AC8: 0%
A9: 17091102 | B9: 17091102 | C9: 17091102 | D9: CYTOPORE 1 100 G (CYTOCELL) | E9: 021 | F9: 12 | G9: MICROCARRIERS | H9: 274 | I9: Microcarriers | J9: 5,794 | K9: 52,198 | L9: 4,925 | M9: 44,368 | N9: 37,922 | O9: 85% | P9: 021 | Q9: 12 | R9: MICROCARRIERS | S9: 274 | T9: Microcarriers | U9: 5,794 | V9: 52,198 | W9: 4,925 | X9: 44,368 | Y9: No | Z9: Yes | AA9: 85% | AB9: 0% | AC9: 0%
A10: 17127101 | B10: 17127101 | C10: 17127101 | D10: CYTOPORE 2 20 G | E10: 021 | F10: 12 | G10: MICROCARRIERS | H10: 274 | I10: Microcarriers | J10: 1,200 | K10: 10,811 | L10: 1,020 | M10: 9,189 | N10: 7,854 | O10: 85% | P10: 021 | Q10: 12 | R10: MICROCARRIERS | S10: 274 | T10: Microcarriers | U10: 1,200 | V10: 10,811 | W10: 1,020 | X10: 9,189 | Y10: No | Z10: Yes | AA10: 85% | AB10: 0% | AC10: 0%
A11: 17127102 | B11: 17127102 | C11: 17127102 | D11: CYTOPORE 2 100 G | E11: 021 | F11: 12 | G11: MICROCARRIERS | H11: 274 | I11: Microcarriers | J11: 5,794 | K11: 52,198 | L11: 4,925 | M11: 44,368 | N11: 37,922 | O11: 85% | P11: 021 | Q11: 12 | R11: MICROCARRIERS | S11: 274 | T11: Microcarriers | U11: 5,794 | V11: 52,198 | W11: 4,925 | X11: 44,368 | Y11: No | Z11: Yes | AA11: 85% | AB11: 0% | AC11: 0%
A12: 18100062 | B12: 18100062 | C12: 18100062 | D12: QUARTZ GLASS ASSEMBLY, 2 MM PATH LE | E12: 021 | F12: 13 | G12: STD BIOPROCESS CHROM HW | H12: 250 | I12: Std AKTApilot | J12: 778 | K12: 7,009 | L12: 622 | M12: 5,607 | N12: 4,792 | O12: 80% | P12: 021 | Q12: 13 | R12: STD BIOPROCESS CHROM HW | S12: 250 | T12: Std AKTApilot | U12: 755 | V12: 6,802 | W12: 529 | X12: 4,761 | Y12: Yes | Z12: Yes | AA12: 70% | AB12: 3% | AC12: 18% | AE12: Yes
A13: 18100063 | B13: 18100063 | C13: 18100063 | D13: QUARTZ GLASS ASSEMBLY, 10 MM PATH L | E13: 021 | F13: 13 | G13: STD BIOPROCESS CHROM HW | H13: 250 | I13: Std AKTApilot | J13: 778 | K13: 7,009 | L13: 622 | M13: 5,607 | N13: 4,792 | O13: 80% | P13: 021 | Q13: 13 | R13: STD BIOPROCESS CHROM HW | S13: 250 | T13: Std AKTApilot | U13: 755 | V13: 6,802 | W13: 529 | X13: 4,761 | Y13: Yes | Z13: Yes | AA13: 70% | AB13: 3% | AC13: 18% | AE13: Yes
A14: 18100064 | B14: 18100064 | C14: 18100064 | D14: QUARTZ GLASS ASSEMBLY, 5 MM PATH LE | E14: 021 | F14: 13 | G14: STD BIOPROCESS CHROM HW | H14: 250 | I14: Std AKTApilot | J14: 778 | K14: 7,009 | L14: 622 | M14: 5,607 | N14: 4,792 | O14: 80% | P14: 021 | Q14: 13 | R14: STD BIOPROCESS CHROM HW | S14: 250 | T14: Std AKTApilot | U14: 755 | V14: 6,802 | W14: 529 | X14: 4,761 | Y14: Yes | Z14: Yes | AA14: 70% | AB14: 3% | AC14: 18% | AE14: Yes
A15: 18100065 | B15: 18100065 | C15: 18100065 | D15: UV FLOW CELL INDUSTR 10MM SS | E15: 021 | F15: 13 | G15: STD BIOPROCESS CHROM HW | H15: 250 | I15: Std AKTApilot | J15: 4,248 | K15: 38,270 | L15: 3,398 | M15: 30,616 | N15: 26,168 | O15: 80% | P15: 021 | Q15: 13 | R15: STD BIOPROCESS CHROM HW | S15: 250 | T15: Std AKTApilot | U15: 4,124 | V15: 37,153 | W15: 2,887 | X15: 26,007 | Y15: Yes | Z15: Yes | AA15: 70% | AB15: 3% | AC15: 18% | AE15: Yes
A16: 18100066 | B16: 18100066 | C16: 18100066 | D16: UV FLOW CELL INDUSTR. 6MM SS | E16: 021 | F16: 13 | G16: STD BIOPROCESS CHROM HW | H16: 250 | I16: Std AKTApilot | J16: 4,029 | K16: 36,297 | L16: 3,223 | M16: 29,038 | N16: 24,819 | O16: 80% | P16: 021 | Q16: 13 | R16: STD BIOPROCESS CHROM HW | S16: 250 | T16: Std AKTApilot | U16: 3,912 | V16: 35,243 | W16: 2,738 | X16: 24,670 | Y16: Yes | Z16: Yes | AA16: 70% | AB16: 3% | AC16: 18% | AE16: Yes
A17: 18102958 | B17: 18102958 | C17: 18102958 | D17: MOVABLE SEAL W. VALVE SUPERLOOP 150 | E17: 021 | F17: 46 | G17: PURIFICATION SYSTEMS | H17: 099 | I17: AKTA Accessories pure and avant | J17: 418 | K17: 3,766 | L17: 293 | M17: 2,636 | N17: 2,253 | O17: 70% | P17: 021 | Q17: 46 | R17: PURIFICATION SYSTEMS | S17: 099 | T17: AKTA Accessories pure and avant | U17: 410 | V17: 3,694 | W17: 287 | X17: 2,586 | Y17: Yes | Z17: Yes | AA17: 70% | AB17: 2% | AC17: 2%
A18: 18102960 | B18: 18102960 | C18: 18102960 | D18: O-RING INNER END PIECE SUPERLOOP 150 | E18: 021 | F18: 46 | G18: PURIFICATION SYSTEMS | H18: 099 | I18: AKTA Accessories pure and avant | J18: 39 | K18: 351 | L18: 27 | M18: 246 | N18: 210 | O18: 70% | P18: 021 | Q18: 46 | R18: PURIFICATION SYSTEMS | S18: 099 | T18: AKTA Accessories pure and avant | U18: 38 | V18: 342 | W18: 27 | X18: 240 | Y18: Yes | Z18: Yes | AA18: 70% | AB18: 3% | AC18: 3%
A19: 18103220 | B19: 18103220 | C19: 18103220 | D19: GLASS TUBE SUPERLOOP 150 ML | E19: 021 | F19: 46 | G19: PURIFICATION SYSTEMS | H19: 099 | I19: AKTA Accessories pure and avant | J19: 617 | K19: 5,559 | L19: 432 | M19: 3,891 | N19: 3,326 | O19: 70% | P19: 021 | Q19: 46 | R19: PURIFICATION SYSTEMS | S19: 099 | T19: AKTA Accessories pure and avant | U19: 605 | V19: 5,450 | W19: 424 | X19: 3,815 | Y19: Yes | Z19: Yes | AA19: 70% | AB19: 2% | AC19: 2%
A20: 18110497 | B20: 18110497 | C20: 18110497 | D20: O-RING 11.3 X 2.4 FFPM/FFKM | E20: 021 | F20: 13 | G20: STD BIOPROCESS CHROM HW | H20: 250 | I20: Std AKTApilot | J20: 181 | K20: 1,631 | L20: 127 | M20: 1,141 | N20: 976 | O20: 70% | P20: 021 | Q20: 13 | R20: STD BIOPROCESS CHROM HW | S20: 250 | T20: Std AKTApilot | U20: 176 | V20: 1,586 | W20: 123 | X20: 1,110 | Y20: Yes | Z20: Yes | AA20: 70% | AB20: 3% | AC20: 3%
A21: 18113695 | B21: 18113695 | C21: 18113695 | D21: SOLVENT RESERVOIR INLET FILTER | E21: 021 | F21: 13 | G21: STD BIOPROCESS CHROM HW | H21: 250 | I21: Std AKTApilot | J21: 156 | K21: 1,405 | L21: 109 | M21: 984 | N21: 841 | O21: 70% | P21: 021 | Q21: 13 | R21: STD BIOPROCESS CHROM HW | S21: 250 | T21: Std AKTApilot | U21: 151 | V21: 1,360 | W21: 106 | X21: 952 | Y21: Yes | Z21: Yes | AA21: 70% | AB21: 3% | AC21: 3%
A22: 18115954 | B22: 18115954 | C22: 18115954 | D22: AKTAPILOT AIRSENSOR CELL940 | E22: 021 | F22: 13 | G22: STD BIOPROCESS CHROM HW | H22: 250 | I22: Std AKTApilot | J22: 1,232 | K22: 11,099 | L22: 986 | M22: 8,879 | N22: 7,589 | O22: 80% | P22: 021 | Q22: 13 | R22: STD BIOPROCESS CHROM HW | S22: 250 | T22: Std AKTApilot | U22: 1,196 | V22: 10,775 | W22: 837 | X22: 7,542 | Y22: Yes | Z22: Yes | AA22: 70% | AB22: 3% | AC22: 18% | AE22: Yes
A23: 18116295 | B23: 18116295 | C23: 18116295 | D23: AKTApilot Instrument Handbook. | E23: 021 | F23: 13 | G23: STD BIOPROCESS CHROM HW | H23: 250 | I23: Std AKTApilot | J23: 48 | K23: 432 | L23: 34 | M23: 303 | N23: 259 | O23: 70% | P23: 021 | Q23: 13 | R23: STD BIOPROCESS CHROM HW | S23: 250 | T23: Std AKTApilot | U23: 47 | V23: 423 | W23: 33 | X23: 296 | Y23: Yes | Z23: Yes | AA23: 70% | AB23: 2% | AC23: 2%
A24: 18116768 | B24: 18116768 | C24: 18116768 | D24: AKTAPILOT TUBING KIT COLUMN | E24: 021 | F24: 13 | G24: STD BIOPROCESS CHROM HW | H24: 250 | I24: Std AKTApilot | J24: 1,097 | K24: 9,883 | L24: 878 | M24: 7,906 | N24: 6,758 | O24: 80% | P24: 021 | Q24: 13 | R24: STD BIOPROCESS CHROM HW | S24: 250 | T24: Std AKTApilot | U24: 1,065 | V24: 9,595 | W24: 746 | X24: 6,716 | Y24: Yes | Z24: Yes | AA24: 70% | AB24: 3% | AC24: 18% | AE24: Yes
A25: 18116770 | B25: 18116770 | C25: 18116770 | D25: AKTAPILOT AIRSENSOR CELL925 | E25: 021 | F25: 13 | G25: STD BIOPROCESS CHROM HW | H25: 250 | I25: Std AKTApilot | J25: 879 | K25: 7,919 | L25: 703 | M25: 6,335 | N25: 5,415 | O25: 80% | P25: 021 | Q25: 13 | R25: STD BIOPROCESS CHROM HW | S25: 250 | T25: Std AKTApilot | U25: 853 | V25: 7,685 | W25: 597 | X25: 5,379 | Y25: Yes | Z25: Yes | AA25: 70% | AB25: 3% | AC25: 18% | AE25: Yes
A26: 18116877 | B26: 18116877 | C26: 18116877 | D26: PH ELECTRODE AKTAPILOT | E26: 021 | F26: 13 | G26: STD BIOPROCESS CHROM HW | H26: 250 | I26: Std AKTApilot | J26: 787 | K26: 7,090 | L26: 630 | M26: 5,672 | N26: 4,848 | O26: 80% | P26: 021 | Q26: 13 | R26: STD BIOPROCESS CHROM HW | S26: 250 | T26: Std AKTApilot | U26: 764 | V26: 6,883 | W26: 535 | X26: 4,818 | Y26: Yes | Z26: Yes | AA26: 70% | AB26: 3% | AC26: 18% | AE26: Yes
A27: 18116883 | B27: 18116883 | C27: 18116883 | D27: UV CELL 1/2/5 MM AKTAPILOT | E27: 021 | F27: 13 | G27: STD BIOPROCESS CHROM HW | H27: 250 | I27: Std AKTApilot | J27: 1,879 | K27: 16,928 | L27: 1,503 | M27: 13,542 | N27: 11,575 | O27: 80% | P27: 021 | Q27: 13 | R27: STD BIOPROCESS CHROM HW | S27: 250 | T27: Std AKTApilot | U27: 1,824 | V27: 16,432 | W27: 1,277 | X27: 11,503 | Y27: Yes | Z27: Yes | AA27: 70% | AB27: 3% | AC27: 18% | AE27: Yes
A28: 18116884 | B28: 18116884 | C28: 18116884 | D28: SHIM PLATE 2 MM AKTAPILOT | E28: 021 | F28: 13 | G28: STD BIOPROCESS CHROM HW | H28: 250 | I28: Std AKTApilot | J28: 129 | K28: 1,162 | L28: 103 | M28: 930 | N28: 795 | O28: 80% | P28: 021 | Q28: 13 | R28: STD BIOPROCESS CHROM HW | S28: 250 | T28: Std AKTApilot | U28: 125 | V28: 1,126 | W28: 88 | X28: 788 | Y28: Yes | Z28: Yes | AA28: 70% | AB28: 3% | AC28: 18% | AE28: Yes
A29: 18116898 | B29: 18116898 | C29: 18116898 | D29: MIXER CHAMB 5ML 5/16in APILOT | E29: 021 | F29: 13 | G29: STD BIOPROCESS CHROM HW | H29: 250 | I29: Std AKTApilot | J29: 568 | K29: 5,117 | L29: 454 | M29: 4,094 | N29: 3,499 | O29: 80% | P29: 021 | Q29: 13 | R29: STD BIOPROCESS CHROM HW | S29: 250 | T29: Std AKTApilot | U29: 551 | V29: 4,964 | W29: 386 | X29: 3,475 | Y29: Yes | Z29: Yes | AA29: 70% | AB29: 3% | AC29: 18% | AE29: Yes
A30: 18116900 | B30: 18116900 | C30: 18116900 | D30: COND CELL I.D.2,5MM AKTAPILOT | E30: 021 | F30: 13 | G30: STD BIOPROCESS CHROM HW | H30: 250 | I30: Std AKTApilot | J30: 943 | K30: 8,495 | L30: 754 | M30: 6,796 | N30: 5,809 | O30: 80% | P30: 021 | Q30: 13 | R30: STD BIOPROCESS CHROM HW | S30: 250 | T30: Std AKTApilot | U30: 916 | V30: 8,252 | W30: 641 | X30: 5,777 | Y30: Yes | Z30: Yes | AA30: 70% | AB30: 3% | AC30: 18% | AE30: Yes
A31: 18116901 | B31: 18116901 | C31: 18116901 | D31: AKTAPILOT CONNECTBLOCK V1 | E31: 021 | F31: 13 | G31: STD BIOPROCESS CHROM HW | H31: 250 | I31: Std AKTApilot | J31: 941 | K31: 8,477 | L31: 753 | M31: 6,782 | N31: 5,797 | O31: 80% | P31: 021 | Q31: 13 | R31: STD BIOPROCESS CHROM HW | S31: 250 | T31: Std AKTApilot | U31: 914 | V31: 8,234 | W31: 640 | X31: 5,764 | Y31: Yes | Z31: Yes | AA31: 70% | AB31: 3% | AC31: 18% | AE31: Yes
A32: 18116902 | B32: 18116902 | C32: 18116902 | D32: AKTAPILOT CONNECTBLOCK V2 | E32: 021 | F32: 13 | G32: STD BIOPROCESS CHROM HW | H32: 250 | I32: Std AKTApilot | J32: 911 | K32: 8,207 | L32: 729 | M32: 6,566 | N32: 5,612 | O32: 80% | P32: 021 | Q32: 13 | R32: STD BIOPROCESS CHROM HW | S32: 250 | T32: Std AKTApilot | U32: 884 | V32: 7,964 | W32: 619 | X32: 5,575 | Y32: Yes | Z32: Yes | AA32: 70% | AB32: 3% | AC32: 18% | AE32: Yes
A33: 18116903 | B33: 18116903 | C33: 18116903 | D33: AKTAPILOT CONNECTBLOCK V3 | E33: 021 | F33: 13 | G33: STD BIOPROCESS CHROM HW | H33: 250 | I33: Std AKTApilot | J33: 911 | K33: 8,207 | L33: 729 | M33: 6,566 | N33: 5,612 | O33: 80% | P33: 021 | Q33: 13 | R33: STD BIOPROCESS CHROM HW | S33: 250 | T33: Std AKTApilot | U33: 884 | V33: 7,964 | W33: 619 | X33: 5,575 | Y33: Yes | Z33: Yes | AA33: 70% | AB33: 3% | AC33: 18% | AE33: Yes
A34: 18116904 | B34: 18116904 | C34: 18116904 | D34: AKTAPILOT CONNECTBLOCK V4 | E34: 021 | F34: 13 | G34: STD BIOPROCESS CHROM HW | H34: 250 | I34: Std AKTApilot | J34: 941 | K34: 8,477 | L34: 753 | M34: 6,782 | N34: 5,797 | O34: 80% | P34: 021 | Q34: 13 | R34: STD BIOPROCESS CHROM HW | S34: 250 | T34: Std AKTApilot | U34: 914 | V34: 8,234 | W34: 640 | X34: 5,764 | Y34: Yes | Z34: Yes | AA34: 70% | AB34: 3% | AC34: 18% | AE34: Yes
A35: 18116905 | B35: 18116905 | C35: 18116905 | D35: AKTAPILOT CONNECTBLOCK V5 | E35: 021 | F35: 13 | G35: STD BIOPROCESS CHROM HW | H35: 250 | I35: Std AKTApilot | J35: 911 | K35: 8,207 | L35: 729 | M35: 6,566 | N35: 5,612 | O35: 80% | P35: 021 | Q35: 13 | R35: STD BIOPROCESS CHROM HW | S35: 250 | T35: Std AKTApilot | U35: 884 | V35: 7,964 | W35: 619 | X35: 5,575 | Y35: Yes | Z35: Yes | AA35: 70% | AB35: 3% | AC35: 18% | AE35: Yes
A36: 18116906 | B36: 18116906 | C36: 18116906 | D36: AKTAPILOT CONNECTBLOCK V6 | E36: 021 | F36: 13 | G36: STD BIOPROCESS CHROM HW | H36: 250 | I36: Std AKTApilot | J36: 911 | K36: 8,207 | L36: 729 | M36: 6,566 | N36: 5,612 | O36: 80% | P36: 021 | Q36: 13 | R36: STD BIOPROCESS CHROM HW | S36: 250 | T36: Std AKTApilot | U36: 884 | V36: 7,964 | W36: 619 | X36: 5,575 | Y36: Yes | Z36: Yes | AA36: 70% | AB36: 3% | AC36: 18% | AE36: Yes
A37: 18116907 | B37: 18116907 | C37: 18116907 | D37: AKTAPILOT CONNECTBLOCK V7 | E37: 021 | F37: 13 | G37: STD BIOPROCESS CHROM HW | H37: 250 | I37: Std AKTApilot | J37: 911 | K37: 8,207 | L37: 729 | M37: 6,566 | N37: 5,612 | O37: 80% | P37: 021 | Q37: 13 | R37: STD BIOPROCESS CHROM HW | S37: 250 | T37: Std AKTApilot | U37: 884 | V37: 7,964 | W37: 619 | X37: 5,575 | Y37: Yes | Z37: Yes | AA37: 70% | AB37: 3% | AC37: 18% | AE37: Yes
A38: 18116908 | B38: 18116908 | C38: 18116908 | D38: AKTAPILOT CONNECTBLOCK V8 | E38: 021 | F38: 13 | G38: STD BIOPROCESS CHROM HW | H38: 250 | I38: Std AKTApilot | J38: 911 | K38: 8,207 | L38: 729 | M38: 6,566 | N38: 5,612 | O38: 80% | P38: 021 | Q38: 13 | R38: STD BIOPROCESS CHROM HW | S38: 250 | T38: Std AKTApilot | U38: 884 | V38: 7,964 | W38: 619 | X38: 5,575 | Y38: Yes | Z38: Yes | AA38: 70% | AB38: 3% | AC38: 18% | AE38: Yes
A39: 18116909 | B39: 18116909 | C39: 18116909 | D39: AKTAPILOT CONNECTBLOCK V9 | E39: 021 | F39: 13 | G39: STD BIOPROCESS CHROM HW | H39: 250 | I39: Std AKTApilot | J39: 911 | K39: 8,207 | L39: 729 | M39: 6,566 | N39: 5,612 | O39: 80% | P39: 021 | Q39: 13 | R39: STD BIOPROCESS CHROM HW | S39: 250 | T39: Std AKTApilot | U39: 884 | V39: 7,964 | W39: 619 | X39: 5,575 | Y39: Yes | Z39: Yes | AA39: 70% | AB39: 3% | AC39: 18% | AE39: Yes
A40: 18116910 | B40: 18116910 | C40: 18116910 | D40: AKTAPILOT VALVE MEMBRANE CPL | E40: 021 | F40: 13 | G40: STD BIOPROCESS CHROM HW | H40: 250 | I40: Std AKTApilot | J40: 280 | K40: 2,523 | L40: 224 | M40: 2,018 | N40: 1,725 | O40: 80% | P40: 021 | Q40: 13 | R40: STD BIOPROCESS CHROM HW | S40: 250 | T40: Std AKTApilot | U40: 272 | V40: 2,450 | W40: 190 | X40: 1,715 | Y40: Yes | Z40: Yes | AA40: 70% | AB40: 3% | AC40: 18% | AE40: Yes
A41: 18116911 | B41: 18116911 | C41: 18116911 | D41: DUMMY PH ELECTRODE AKTAPILOT | E41: 021 | F41: 13 | G41: STD BIOPROCESS CHROM HW | H41: 250 | I41: Std AKTApilot | J41: 142 | K41: 1,279 | L41: 114 | M41: 1,023 | N41: 875 | O41: 80% | P41: 021 | Q41: 13 | R41: STD BIOPROCESS CHROM HW | S41: 250 | T41: Std AKTApilot | U41: 138 | V41: 1,243 | W41: 97 | X41: 870 | Y41: Yes | Z41: Yes | AA41: 70% | AB41: 3% | AC41: 18% | AE41: Yes
A42: 18116912 | B42: 18116912 | C42: 18116912 | D42: AKTAPILOT O-RING 3X1 | E42: 021 | F42: 13 | G42: STD BIOPROCESS CHROM HW | H42: 250 | I42: Std AKTApilot | J42: 786 | K42: 7,081 | L42: 629 | M42: 5,665 | N42: 4,842 | O42: 80% | P42: 021 | Q42: 13 | R42: STD BIOPROCESS CHROM HW | S42: 250 | T42: Std AKTApilot | U42: 763 | V42: 6,874 | W42: 534 | X42: 4,812 | Y42: Yes | Z42: Yes | AA42: 70% | AB42: 3% | AC42: 18% | AE42: Yes
A43: 18116918 | B43: 18116918 | C43: 18116918 | D43: CLAMP TC 25 AKTAPILOT | E43: 021 | F43: 13 | G43: STD BIOPROCESS CHROM HW | H43: 250 | I43: Std AKTApilot | J43: 337 | K43: 3,036 | L43: 236 | M43: 2,125 | N43: 1,816 | O43: 70% | P43: 021 | Q43: 13 | R43: STD BIOPROCESS CHROM HW | S43: 250 | T43: Std AKTApilot | U43: 327 | V43: 2,946 | W43: 229 | X43: 2,062 | Y43: Yes | Z43: Yes | AA43: 70% | AB43: 3% | AC43: 3%
A44: 18116919 | B44: 18116919 | C44: 18116919 | D44: AKTAPILOT ELBOW 90 TC25 SHORT | E44: 021 | F44: 13 | G44: STD BIOPROCESS CHROM HW | H44: 250 | I44: Std AKTApilot | J44: 181 | K44: 1,631 | L44: 127 | M44: 1,141 | N44: 976 | O44: 70% | P44: 021 | Q44: 13 | R44: STD BIOPROCESS CHROM HW | S44: 250 | T44: Std AKTApilot | U44: 176 | V44: 1,586 | W44: 123 | X44: 1,110 | Y44: Yes | Z44: Yes | AA44: 70% | AB44: 3% | AC44: 3%
A45: 18116920 | B45: 18116920 | C45: 18116920 | D45: AKTAPILOT ELBOW90 TC25OPE LONG | E45: 021 | F45: 13 | G45: STD BIOPROCESS CHROM HW | H45: 250 | I45: Std AKTApilot | J45: 639 | K45: 5,757 | L45: 447 | M45: 4,030 | N45: 3,444 | O45: 70% | P45: 021 | Q45: 13 | R45: STD BIOPROCESS CHROM HW | S45: 250 | T45: Std AKTApilot | U45: 620 | V45: 5,586 | W45: 434 | X45: 3,910 | Y45: Yes | Z45: Yes | AA45: 70% | AB45: 3% | AC45: 3%
A46: 18116921 | B46: 18116921 | C46: 18116921 | D46: INLET TC CONNECT KIT AKTAPILOT | E46: 021 | F46: 13 | G46: STD BIOPROCESS CHROM HW | H46: 250 | I46: Std AKTApilot | J46: 305 | K46: 2,748 | L46: 214 | M46: 1,923 | N46: 1,644 | O46: 70% | P46: 021 | Q46: 13 | R46: STD BIOPROCESS CHROM HW | S46: 250 | T46: Std AKTApilot | U46: 296 | V46: 2,667 | W46: 207 | X46: 1,867 | Y46: Yes | Z46: Yes | AA46: 70% | AB46: 3% | AC46: 3%
A47: 18116924 | B47: 18116924 | C47: 18116924 | D47: TC GASKET 25/4 AKTAPILOT | E47: 021 | F47: 13 | G47: STD BIOPROCESS CHROM HW | H47: 250 | I47: Std AKTApilot | J47: 301 | K47: 2,712 | L47: 211 | M47: 1,898 | N47: 1,622 | O47: 70% | P47: 021 | Q47: 13 | R47: STD BIOPROCESS CHROM HW | S47: 250 | T47: Std AKTApilot | U47: 292 | V47: 2,631 | W47: 204 | X47: 1,841 | Y47: Yes | Z47: Yes | AA47: 70% | AB47: 3% | AC47: 3%
A48: 18116925 | B48: 18116925 | C48: 18116925 | D48: TC GASKET 25/6,5 AKTAPILOT | E48: 021 | F48: 13 | G48: STD BIOPROCESS CHROM HW | H48: 250 | I48: Std AKTApilot | J48: 541 | K48: 4,874 | L48: 379 | M48: 3,412 | N48: 2,916 | O48: 70% | P48: 021 | Q48: 13 | R48: STD BIOPROCESS CHROM HW | S48: 250 | T48: Std AKTApilot | U48: 525 | V48: 4,730 | W48: 368 | X48: 3,311 | Y48: Yes | Z48: Yes | AA48: 70% | AB48: 3% | AC48: 3%
A49: 18116958 | B49: 18116958 | C49: 18116958 | D49: AKTAPILOT AIR INLET FILTER | E49: 021 | F49: 13 | G49: STD BIOPROCESS CHROM HW | H49: 250 | I49: Std AKTApilot | J49: 156 | K49: 1,405 | L49: 125 | M49: 1,124 | N49: 961 | O49: 80% | P49: 021 | Q49: 13 | R49: STD BIOPROCESS CHROM HW | S49: 250 | T49: Std AKTApilot | U49: 151 | V49: 1,360 | W49: 106 | X49: 952 | Y49: Yes | Z49: Yes | AA49: 70% | AB49: 3% | AC49: 18% | AE49: Yes
A50: 18116959 | B50: 18116959 | C50: 18116959 | D50: AKTAPILOT TUBE S1 CPL | E50: 021 | F50: 13 | G50: STD BIOPROCESS CHROM HW | H50: 250 | I50: Std AKTApilot | J50: 196 | K50: 1,766 | L50: 137 | M50: 1,236 | N50: 1,056 | O50: 70% | P50: 021 | Q50: 13 | R50: STD BIOPROCESS CHROM HW | S50: 250 | T50: Std AKTApilot | U50: 190 | V50: 1,712 | W50: 133 | X50: 1,198 | Y50: Yes | Z50: Yes | AA50: 70% | AB50: 3% | AC50: 3%
A51: 18116966 | B51: 18116966 | C51: 18116966 | D51: AKTAPILOT TUBE S2 CPL | E51: 021 | F51: 13 | G51: STD BIOPROCESS CHROM HW | H51: 250 | I51: Std AKTApilot | J51: 202 | K51: 1,820 | L51: 141 | M51: 1,274 | N51: 1,089 | O51: 70% | P51: 021 | Q51: 13 | R51: STD BIOPROCESS CHROM HW | S51: 250 | T51: Std AKTApilot | U51: 196 | V51: 1,766 | W51: 137 | X51: 1,236 | Y51: Yes | Z51: Yes | AA51: 70% | AB51: 3% | AC51: 3%
A52: 18116967 | B52: 18116967 | C52: 18116967 | D52: AKTAPILOT TUBE S3 CPL | E52: 021 | F52: 13 | G52: STD BIOPROCESS CHROM HW | H52: 250 | I52: Std AKTApilot | J52: 207 | K52: 1,865 | L52: 145 | M52: 1,305 | N52: 1,116 | O52: 70% | P52: 021 | Q52: 13 | R52: STD BIOPROCESS CHROM HW | S52: 250 | T52: Std AKTApilot | U52: 201 | V52: 1,811 | W52: 141 | X52: 1,268 | Y52: Yes | Z52: Yes | AA52: 70% | AB52: 3% | AC52: 3%
A53: 18116968 | B53: 18116968 | C53: 18116968 | D53: AKTAPILOT TUBE S4 CPL | E53: 021 | F53: 13 | G53: STD BIOPROCESS CHROM HW | H53: 250 | I53: Std AKTApilot | J53: 207 | K53: 1,865 | L53: 145 | M53: 1,305 | N53: 1,116 | O53: 70% | P53: 021 | Q53: 13 | R53: STD BIOPROCESS CHROM HW | S53: 250 | T53: Std AKTApilot | U53: 201 | V53: 1,811 | W53: 141 | X53: 1,268 | Y53: Yes | Z53: Yes | AA53: 70% | AB53: 3% | AC53: 3%
A54: 18116969 | B54: 18116969 | C54: 18116969 | D54: AKTAPILOT TUBE S5 CPL | E54: 021 | F54: 13 | G54: STD BIOPROCESS CHROM HW | H54: 250 | I54: Std AKTApilot | J54: 207 | K54: 1,865 | L54: 145 | M54: 1,305 | N54: 1,116 | O54: 70% | P54: 021 | Q54: 13 | R54: STD BIOPROCESS CHROM HW | S54: 250 | T54: Std AKTApilot | U54: 201 | V54: 1,811 | W54: 141 | X54: 1,268 | Y54: Yes | Z54: Yes | AA54: 70% | AB54: 3% | AC54: 3%
A55: 18116970 | B55: 18116970 | C55: 18116970 | D55: AKTAPILOT TUBE S6 CPL | E55: 021 | F55: 13 | G55: STD BIOPROCESS CHROM HW | H55: 250 | I55: Std AKTApilot | J55: 207 | K55: 1,865 | L55: 145 | M55: 1,305 | N55: 1,116 | O55: 70% | P55: 021 | Q55: 13 | R55: STD BIOPROCESS CHROM HW | S55: 250 | T55: Std AKTApilot | U55: 201 | V55: 1,811 | W55: 141 | X55: 1,268 | Y55: Yes | Z55: Yes | AA55: 70% | AB55: 3% | AC55: 3%
A56: 18116971 | B56: 18116971 | C56: 18116971 | D56: AKTAPILOT TUBE S7 CPL | E56: 021 | F56: 13 | G56: STD BIOPROCESS CHROM HW | H56: 250 | I56: Std AKTApilot | J56: 241 | K56: 2,171 | L56: 169 | M56: 1,520 | N56: 1,299 | O56: 70% | P56: 021 | Q56: 13 | R56: STD BIOPROCESS CHROM HW | S56: 250 | T56: Std AKTApilot | U56: 234 | V56: 2,108 | W56: 164 | X56: 1,476 | Y56: Yes | Z56: Yes | AA56: 70% | AB56: 3% | AC56: 3%
A57: 18116972 | B57: 18116972 | C57: 18116972 | D57: AKTAPILOT TUBE S10 CPL | E57: 021 | F57: 13 | G57: STD BIOPROCESS CHROM HW | H57: 250 | I57: Std AKTApilot | J57: 202 | K57: 1,820 | L57: 141 | M57: 1,274 | N57: 1,089 | O57: 70% | P57: 021 | Q57: 13 | R57: STD BIOPROCESS CHROM HW | S57: 250 | T57: Std AKTApilot | U57: 196 | V57: 1,766 | W57: 137 | X57: 1,236 | Y57: Yes | Z57: Yes | AA57: 70% | AB57: 3% | AC57: 3%
A58: 18116973 | B58: 18116973 | C58: 18116973 | D58: AKTAPILOT TUBE S12 CPL | E58: 021 | F58: 13 | G58: STD BIOPROCESS CHROM HW | H58: 250 | I58: Std AKTApilot | J58: 202 | K58: 1,820 | L58: 141 | M58: 1,274 | N58: 1,089 | O58: 70% | P58: 021 | Q58: 13 | R58: STD BIOPROCESS CHROM HW | S58: 250 | T58: Std AKTApilot | U58: 196 | V58: 1,766 | W58: 137 | X58: 1,236 | Y58: Yes | Z58: Yes | AA58: 70% | AB58: 3% | AC58: 3%
A59: 18116974 | B59: 18116974 | C59: 18116974 | D59: AKTAPILOT TUBE S13 CPL | E59: 021 | F59: 13 | G59: STD BIOPROCESS CHROM HW | H59: 250 | I59: Std AKTApilot | J59: 214 | K59: 1,928 | L59: 150 | M59: 1,350 | N59: 1,153 | O59: 70% | P59: 021 | Q59: 13 | R59: STD BIOPROCESS CHROM HW | S59: 250 | T59: Std AKTApilot | U59: 208 | V59: 1,874 | W59: 146 | X59: 1,312 | Y59: Yes | Z59: Yes | AA59: 70% | AB59: 3% | AC59: 3%
A60: 18116975 | B60: 18116975 | C60: 18116975 | D60: AKTAPILOT TUBE S8 CPL | E60: 021 | F60: 13 | G60: STD BIOPROCESS CHROM HW | H60: 250 | I60: Std AKTApilot | J60: 241 | K60: 2,171 | L60: 169 | M60: 1,520 | N60: 1,299 | O60: 70% | P60: 021 | Q60: 13 | R60: STD BIOPROCESS CHROM HW | S60: 250 | T60: Std AKTApilot | U60: 234 | V60: 2,108 | W60: 164 | X60: 1,476 | Y60: Yes | Z60: Yes | AA60: 70% | AB60: 3% | AC60: 3%
A61: 18117008 | B61: 18117008 | C61: 18117008 | D61: CONNECTOR TC - 5/16 , SHORT | E61: 021 | F61: 13 | G61: STD BIOPROCESS CHROM HW | H61: 250 | I61: Std AKTApilot | J61: 203 | K61: 1,829 | L61: 142 | M61: 1,280 | N61: 1,094 | O61: 70% | P61: 021 | Q61: 13 | R61: STD BIOPROCESS CHROM HW | S61: 250 | T61: Std AKTApilot | U61: 197 | V61: 1,775 | W61: 138 | X61: 1,242 | Y61: Yes | Z61: Yes | AA61: 70% | AB61: 3% | AC61: 3%
A62: 18117059 | B62: 18117059 | C62: 18117059 | D62: T CONNECTOR 5/16-24 AKTAPILOT | E62: 021 | F62: 13 | G62: STD BIOPROCESS CHROM HW | H62: 250 | I62: Std AKTApilot | J62: 510 | K62: 4,595 | L62: 357 | M62: 3,216 | N62: 2,749 | O62: 70% | P62: 021 | Q62: 13 | R62: STD BIOPROCESS CHROM HW | S62: 250 | T62: Std AKTApilot | U62: 495 | V62: 4,459 | W62: 347 | X62: 3,122 | Y62: Yes | Z62: Yes | AA62: 70% | AB62: 3% | AC62: 3%
A63: 18117060 | B63: 18117060 | C63: 18117060 | D63: AKTAPILOT ELBOW 90 KIT | E63: 021 | F63: 13 | G63: STD BIOPROCESS CHROM HW | H63: 250 | I63: Std AKTApilot | J63: 387 | K63: 3,486 | L63: 271 | M63: 2,441 | N63: 2,086 | O63: 70% | P63: 021 | Q63: 13 | R63: STD BIOPROCESS CHROM HW | S63: 250 | T63: Std AKTApilot | U63: 376 | V63: 3,387 | W63: 263 | X63: 2,371 | Y63: Yes | Z63: Yes | AA63: 70% | AB63: 3% | AC63: 3%
A64: 18117097 | B64: 18117097 | C64: 18117097 | D64: AIR TRAP CPL | E64: 021 | F64: 13 | G64: STD BIOPROCESS CHROM HW | H64: 250 | I64: Std AKTApilot | J64: 2,711 | K64: 24,423 | L64: 1,898 | M64: 17,096 | N64: 14,612 | O64: 70% | P64: 021 | Q64: 13 | R64: STD BIOPROCESS CHROM HW | S64: 250 | T64: Std AKTApilot | U64: 2,632 | V64: 23,712 | W64: 1,842 | X64: 16,598 | Y64: Yes | Z64: Yes | AA64: 70% | AB64: 3% | AC64: 3%
A65: 18117101 | B65: 18117101 | C65: 18117101 | D65: AIR TRAP VENT TUBING | E65: 021 | F65: 13 | G65: STD BIOPROCESS CHROM HW | H65: 250 | I65: Std AKTApilot | J65: 67 | K65: 604 | L65: 67 | M65: 604 | N65: 516 | O65: 100% | P65: 021 | Q65: 13 | R65: STD BIOPROCESS CHROM HW | S65: 250 | T65: Std AKTApilot | U65: 65 | V65: 586 | W65: 46 | X65: 410 | Y65: Yes | Z65: Yes | AA65: 70% | AB65: 3% | AC65: 47%
A66: 18117102 | B66: 18117102 | C66: 18117102 | D66: CONNECTOR TC-G1/8 | E66: 021 | F66: 13 | G66: STD BIOPROCESS CHROM HW | H66: 250 | I66: Std AKTApilot | J66: 203 | K66: =J66*9.009 -> 1,829 | L66: =J66*O66 -> 142 | M66: 1,280 | N66: 1,094 | O66: 70% | P66: 021 | Q66: 13 | R66: STD BIOPROCESS CHROM HW | S66: 250 | T66: Std AKTApilot | U66: 197 | V66: 1,775 | W66: 138 | X66: 1,242 | Y66: Yes | Z66: Yes | AA66: 70% | AB66: =J66/U66-1 -> 3% | AC66: =L66/W66-1 -> 3%
A67: =TRIM(B67) -> 18117106 | B67: 18117106 | C67: 18117106 | D67: AKTAPILOT FILTERKIT SARTORIUS | E67: 021 | F67: 13 | G67: STD BIOPROCESS CHROM HW | H67: 250 | I67: Std AKTApilot | J67: 2,769 | K67: 24,946 | L67: 1,938 | M67: =L67*9.009 -> 17,462 | N67: =M67/1.17 -> 14,925 | O67: =AA67 -> 70% | P67: 021 | Q67: 13 | R67: STD BIOPROCESS CHROM HW | S67: 250 | T67: Std AKTApilot | U67: 2,688 | V67: 24,216 | W67: 1,882 | X67: 16,951 | Y67: Yes | Z67: Yes | AA67: =W67/U67 -> 70% | AB67: 3% | AC67: 3%
A68: 18460392 | B68: 18460392 | C68: 18460392 | D68: TUBING CUTTER | E68: 021 | F68: 13 | G68: STD BIOPROCESS CHROM HW | H68: 250 | I68: Std AKTApilot | J68: 88 | K68: 793 | L68: 62 | M68: 555 | N68: 474 | O68: 70% | P68: 021 | Q68: 13 | R68: STD BIOPROCESS CHROM HW | S68: 250 | T68: Std AKTApilot | U68: 85 | V68: 766 | W68: 60 | X68: 536 | Y68: Yes | Z68: Yes | AA68: 70% | AB68: 4% | AC68: 4%
A69: 18465201 | B69: 18465201 | C69: 18465201 | D69: TUBING CONNECTORS 2.7 | E69: 021 | F69: 13 | G69: STD BIOPROCESS CHROM HW | H69: 250 | I69: Std AKTApilot | J69: 126 | K69: 1,135 | L69: 88 | M69: 795 | N69: 679 | O69: 70% | P69: 021 | Q69: 13 | R69: STD BIOPROCESS CHROM HW | S69: 250 | T69: Std AKTApilot | U69: 122 | V69: 1,099 | W69: 85 | X69: 769 | Y69: Yes | Z69: Yes | AA69: 70% | AB69: 3% | AC69: 3%
A70: 18469901 | B70: 18469901 | C70: 18469901 | D70: GLASS CYLINDER | E70: 021 | F70: 13 | G70: STD BIOPROCESS CHROM HW | H70: 250 | I70: Std AKTApilot | J70: 230 | K70: 2,072 | L70: 184 | M70: 1,658 | N70: 1,417 | O70: 80% | P70: 021 | Q70: 13 | R70: STD BIOPROCESS CHROM HW | S70: 250 | T70: Std AKTApilot | U70: 223 | V70: 2,009 | W70: 156 | X70: 1,406 | Y70: Yes | Z70: Yes | AA70: 70% | AB70: 3% | AC70: 18% | AE70: Yes
A71: 18580801 | B71: 18580801 | C71: 18580801 | D71: O-RING 11.3X2.4, KALREZ | E71: 021 | F71: 13 | G71: STD BIOPROCESS CHROM HW | H71: 250 | I71: Std AKTApilot | J71: 245 | K71: 2,207 | L71: 172 | M71: 1,545 | N71: 1,321 | O71: 70% | P71: 021 | Q71: 13 | R71: STD BIOPROCESS CHROM HW | S71: 250 | T71: Std AKTApilot | U71: 238 | V71: 2,144 | W71: 167 | X71: 1,501 | Y71: Yes | Z71: Yes | AA71: 70% | AB71: 3% | AC71: 3%
A72: 18820702 | B72: 18820702 | C72: 18820702 | D72: TUBING 1.9/2.7, PTFE 7X4 M | E72: 021 | F72: 13 | G72: STD BIOPROCESS CHROM HW | H72: 250 | I72: Std AKTApilot | J72: 315 | K72: 2,838 | L72: 221 | M72: 1,986 | N72: 1,698 | O72: 70% | P72: 021 | Q72: 13 | R72: STD BIOPROCESS CHROM HW | S72: 250 | T72: Std AKTApilot | U72: 306 | V72: 2,757 | W72: 214 | X72: 1,930 | Y72: Yes | Z72: Yes | AA72: 70% | AB72: 3% | AC72: 3%
A73: 18820703 | B73: 18820703 | C73: 18820703 | D73: TUBING S-FLANGED I.D 1.9 MM X 1 M | E73: 021 | F73: 13 | G73: STD BIOPROCESS CHROM HW | H73: 250 | I73: Std AKTApilot | J73: 56 | K73: 505 | L73: 询价 | M73: 询价 | O73: 100% | P73: 021 | Q73: 13 | R73: STD BIOPROCESS CHROM HW | S73: 250 | T73: Std AKTApilot | U73: 54 | V73: 486 | W73: 38 | X73: 341 | Y73: Yes | Z73: Yes | AA73: 70% | AB73: 4%
A74: 19437002 | B74: 19437002 | C74: 19437002 | D74: TUBING 1,2 1,8, ETFE, 10X5M | E74: 021 | F74: 13 | G74: STD BIOPROCESS CHROM HW | H74: 250 | I74: Std AKTApilot | J74: 606 | K74: 5,459 | L74: =J74*O74 -> 424 | M74: 3,822 | N74: 3,266 | O74: 70% | P74: 021 | Q74: 13 | R74: STD BIOPROCESS CHROM HW | S74: 250 | T74: Std AKTApilot | U74: 588 | V74: 5,297 | W74: 412 | X74: 3,708 | Y74: Yes | Z74: Yes | AA74: 70% | AB74: 3% | AC74: 3%
A75: 19451002 | B75: 19451002 | C75: 19451002 | D75: INDUSTRIAL FLOW CELL 1/4in | E75: 021 | F75: 13 | G75: STD BIOPROCESS CHROM HW | H75: 250 | I75: Std AKTApilot | J75: 1,534 | K75: 13,820 | L75: =J75*O75 -> 1,074 | M75: 9,674 | N75: 8,268 | O75: 70% | P75: 021 | Q75: 13 | R75: STD BIOPROCESS CHROM HW | S75: 250 | T75: Std AKTApilot | U75: 1,489 | V75: 13,414 | W75: 1,042 | X75: 9,390 | Y75: Yes | Z75: Yes | AA75: 70% | AB75: 3% | AC75: 3%
A76: 19938601 | B76: 19938601 | C76: 19938601 | D76: FUSE 3.15 A SB 5X20 | E76: 021 | F76: 13 | G76: STD BIOPROCESS CHROM HW | H76: 250 | I76: Std AKTApilot | J76: 35 | K76: 315 | L76: 询价 | M76: 询价 | O76: 100% | P76: 021 | Q76: 13 | R76: STD BIOPROCESS CHROM HW | S76: 250 | T76: Std AKTApilot | U76: 34 | V76: 306 | W76: 24 | X76: 214 | Y76: Yes | Z76: Yes | AA76: 70% | AB76: 3%
A77: 28400903 | B77: 28400903 | C77: 28400903 | D77: CIP MANIFOLD CPL | E77: 021 | F77: 13 | G77: STD BIOPROCESS CHROM HW | H77: 250 | I77: Std AKTApilot | J77: 5,426 | K77: 48,883 | L77: =J77*O77 -> 3,798 | M77: 34,218 | N77: 29,246 | O77: 70% | P77: 021 | Q77: 13 | R77: STD BIOPROCESS CHROM HW | S77: 250 | T77: Std AKTApilot | U77: 5,268 | V77: 47,459 | W77: 3,688 | X77: 33,222 | Y77: Yes | Z77: Yes | AA77: 70% | AB77: 3% | AC77: 3%
A78: 28407972 | B78: 28407972 | C78: 28407972 | D78: EVB RACK CPL | E78: 021 | F78: 13 | G78: STD BIOPROCESS CHROM HW | H78: 250 | I78: Std AKTApilot | J78: 3,633 | K78: 32,730 | L78: 2,543 | M78: 22,911 | N78: 19,582 | O78: 70% | P78: 021 | Q78: 13 | R78: STD BIOPROCESS CHROM HW | S78: 250 | T78: Std AKTApilot | U78: 3,527 | V78: 31,775 | W78: 2,469 | X78: 22,242 | Y78: Yes | Z78: Yes | AA78: 70% | AB78: 3% | AC78: 3%
A79: 28407975 | B79: 28407975 | C79: 28407975 | D79: EVB 981 | E79: 021 | F79: 13 | G79: STD BIOPROCESS CHROM HW | H79: 250 | I79: Std AKTApilot | J79: 6,531 | K79: 58,838 | L79: 5,225 | M79: 47,070 | N79: 40,231 | O79: 80% | P79: 021 | Q79: 13 | R79: STD BIOPROCESS CHROM HW | S79: 250 | T79: Std AKTApilot | U79: 6,341 | V79: 57,126 | W79: 4,439 | X79: 39,988 | Y79: Yes | Z79: Yes | AA79: 70% | AB79: 3% | AC79: 18% | AE79: Yes
A80: 28407978 | B80: 28407978 | C80: 28407978 | D80: EVB 988 | E80: 021 | F80: 13 | G80: STD BIOPROCESS CHROM HW | H80: 250 | I80: Std AKTApilot | J80: 5,314 | K80: 47,874 | L80: 4,251 | M80: 38,299 | N80: 32,734 | O80: 80% | P80: 021 | Q80: 13 | R80: STD BIOPROCESS CHROM HW | S80: 250 | T80: Std AKTApilot | U80: 5,159 | V80: 46,477 | W80: 3,611 | X80: 32,534 | Y80: Yes | Z80: Yes | AA80: 70% | AB80: 3% | AC80: 18% | AE80: Yes
A81: 28903222 | B81: 28903222 | C81: 28903222 | D81: AKTAPILOT TUBE S14 CPL | E81: 021 | F81: 13 | G81: STD BIOPROCESS CHROM HW | H81: 250 | I81: Std AKTApilot | J81: 310 | K81: 2,793 | L81: 217 | M81: 1,955 | N81: 1,671 | O81: 70% | P81: 021 | Q81: 13 | R81: STD BIOPROCESS CHROM HW | S81: 250 | T81: Std AKTApilot | U81: 301 | V81: 2,712 | W81: 211 | X81: 1,898 | Y81: Yes | Z81: Yes | AA81: 70% | AB81: 3% | AC81: 3%
A82: 28907058 | B82: 28907058 | C82: 28907058 | D82: Elektrodhus pH | E82: 021 | F82: 13 | G82: STD BIOPROCESS CHROM HW | H82: 250 | I82: Std AKTApilot | J82: 489 | K82: 4,405 | L82: 342 | M82: 3,084 | N82: 2,636 | O82: 70% | P82: 021 | Q82: 13 | R82: STD BIOPROCESS CHROM HW | S82: 250 | T82: Std AKTApilot | U82: 475 | V82: 4,279 | W82: 333 | X82: 2,995 | Y82: Yes | Z82: Yes | AA82: 70% | AB82: 3% | AC82: 3%
A83: 28989522 | B83: 28989522 | C83: 28989522 | D83: AKTApilot | E83: 021 | F83: 13 | G83: STD BIOPROCESS CHROM HW | H83: 250 | I83: Std AKTApilot | J83: 询价 | K83: =V83 -> 询价 | L83: 询价 | M83: 询价 | O83: =M83 -> 询价 | P83: 021 | Q83: 13 | R83: STD BIOPROCESS CHROM HW | S83: 250 | T83: Std AKTApilot | U83: 询价 | V83: 询价 | W83: 询价 | X83: 询价 | Y83: Yes | Z83: Yes
A84: 28998515 | B84: 28998515 | C84: 28998515 | D84: AKTAPILOT W/CONTROL | E84: 021 | F84: 13 | G84: STD BIOPROCESS CHROM HW | H84: 250 | I84: Std AKTApilot | J84: 询价 | K84: 询价 | L84: 询价 | M84: 询价 | O84: =M84 -> 询价 | P84: 021 | Q84: 13 | R84: STD BIOPROCESS CHROM HW | S84: 250 | T84: Std AKTApilot | U84: 询价 | V84: 询价 | W84: 询价 | X84: 询价 | Y84: Yes | Z84: Yes
A85: 28998554 | B85: 28998554 | C85: 28998554 | D85: AKTAPILOT ACCESSORY START KIT | E85: 021 | F85: 13 | G85: STD BIOPROCESS CHROM HW | H85: 250 | I85: Std AKTApilot | J85: 询价 | K85: 询价 | L85: 询价 | M85: 询价 | O85: 询价 | P85: 021 | Q85: 13 | R85: STD BIOPROCESS CHROM HW | S85: 250 | T85: Std AKTApilot | U85: 询价 | V85: 询价 | W85: 询价 | X85: 询价 | Y85: Yes | Z85: Yes
A86: 28998916 | B86: 28998916 | C86: 28998916 | D86: NA-AKTApilot | E86: 021 | F86: 13 | G86: STD BIOPROCESS CHROM HW | H86: 250 | I86: Std AKTApilot | J86: 询价 | K86: 询价 | L86: 询价 | M86: 询价 | O86: 询价 | P86: 021 | Q86: 13 | R86: STD BIOPROCESS CHROM HW | S86: 250 | T86: Std AKTApilot | U86: 询价 | V86: 询价 | W86: 询价 | X86: 询价 | Y86: Yes | Z86: Yes
A87: 29013905 | B87: 29013905 | C87: 29013905 | D87: Rupture Disc Hanger AKTA Pilot | E87: 021 | F87: 13 | G87: STD BIOPROCESS CHROM HW | H87: 250 | I87: Std AKTApilot | J87: 416 | K87: =J87*9.009 -> 3,748 | L87: =J87*O87 -> 291 | M87: 2,623 | N87: 2,242 | O87: 70% | P87: 021 | Q87: 13 | R87: STD BIOPROCESS CHROM HW | S87: 250 | T87: Std AKTApilot | U87: 404 | V87: 3,640 | W87: 283 | X87: 2,548 | Y87: Yes | Z87: Yes | AA87: 70% | AB87: 3% | AC87: 3%
A88: 29031217 | B88: 29031217 | C88: 29031217 | D88: AKTAPILOT WETTED PARTS KIT | E88: 021 | F88: 13 | G88: STD BIOPROCESS CHROM HW | H88: 250 | I88: Std AKTApilot | J88: 43,891 | K88: =J88*9.009 -> 395,414 | L88: =J88*O88 -> 30,724 | M88: 276,790 | N88: 236,572 | O88: 70% | P88: 021 | Q88: 13 | R88: STD BIOPROCESS CHROM HW | S88: 250 | T88: Std AKTApilot | U88: 42,613 | V88: 383,901 | W88: 29,829 | X88: 268,730 | Y88: Yes | Z88: Yes | AA88: 70% | AB88: 3% | AC88: 3%
A89: 29031719 | B89: 29031719 | C89: 29031719 | D89: Rent Akta Pilot w.Col Axich100 | E89: 021 | F89: 13 | G89: STD BIOPROCESS CHROM HW | H89: 250 | I89: Std AKTApilot | J89: 询价 | K89: =V89 -> 询价 | L89: 询价 | M89: 询价 | O89: =M89 -> 询价 | P89: 021 | Q89: 13 | R89: STD BIOPROCESS CHROM HW | S89: 250 | T89: Std AKTApilot | U89: 询价 | V89: 询价 | W89: 询价 | X89: 询价 | Y89: Yes | Z89: Yes
A90: 72XX0336 | B90: 72XX0336 | C90: 29109360 | D90: PC RACK | E90: 021 | F90: 13 | G90: STD BIOPROCESS CHROM HW | H90: 250 | I90: Std AKTApilot | J90: 询价 | K90: 询价 | L90: 询价 | M90: 询价 | O90: 询价 | P90: 021 | Q90: 13 | R90: STD BIOPROCESS CHROM HW | S90: 250 | T90: Std AKTApilot | U90: 询价 | V90: 询价 | W90: 询价 | X90: 询价 | Y90: Yes | Z90: Yes
A91: 80590250 | B91: 80590250 | C91: 80590250 | D91: Domestic Std ChrSys Apilot | E91: 021 | F91: 13 | G91: STD BIOPROCESS CHROM HW | H91: 250 | I91: Std AKTApilot | J91: 询价 | K91: 询价 | L91: 询价 | M91: 询价 | O91: 询价 | P91: 021 | Q91: 13 | R91: STD BIOPROCESS CHROM HW | S91: 250 | T91: Std AKTApilot | U91: 询价 | V91: 询价 | W91: 询价 | X91: 询价 | Y91: Yes | Z91: Yes
A92: 18000542 | B92: 18000542 | C92: 18000542 | D92: Tubing L=300mm, TC25mm, ID 1/4" | E92: 021 | F92: 13 | G92: STD BIOPROCESS CHROM HW | H92: 254 | I92: Std BPG | J92: 323 | K92: =J92*9.009 -> 2,910 | L92: =J92*O92 -> 226 | M92: 2,037 | N92: 1,741 | O92: 70% | P92: 021 | Q92: 13 | R92: STD BIOPROCESS CHROM HW | S92: 254 | T92: Std BPG | U92: 311 | V92: 2,802 | W92: 218 | X92: 1,961 | Y92: Yes | Z92: Yes | AA92: 70% | AB92: 4% | AC92: 4%
A93: 18000543 | B93: 18000543 | C93: 18000543 | D93: Tubing L=750mm, TC25mm, ID 1/4" | E93: 021 | F93: 13 | G93: STD BIOPROCESS CHROM HW | H93: 254 | I93: Std BPG | J93: 342 | K93: 3,081 | L93: 239 | M93: 2,157 | N93: 1,843 | O93: 70% | P93: 021 | Q93: 13 | R93: STD BIOPROCESS CHROM HW | S93: 254 | T93: Std BPG | U93: 329 | V93: 2,964 | W93: 230 | X93: 2,075 | Y93: Yes | Z93: Yes | AA93: 70% | AB93: 4% | AC93: 4%
A94: 18000544 | B94: 18000544 | C94: 18000544 | D94: Tubing L=1250mm, TC25mm, ID 1/4" | E94: 021 | F94: 13 | G94: STD BIOPROCESS CHROM HW | H94: 254 | I94: Std BPG | J94: 349 | K94: 3,144 | L94: 244 | M94: 2,201 | N94: 1,881 | O94: 70% | P94: 021 | Q94: 13 | R94: STD BIOPROCESS CHROM HW | S94: 254 | T94: Std BPG | U94: 336 | V94: 3,027 | W94: 235 | X94: 2,119 | Y94: Yes | Z94: Yes | AA94: 70% | AB94: 4% | AC94: 4%
A95: 18000545 | B95: 18000545 | C95: 18000545 | D95: Tubing L=1500mm, TC25mm, ID 1/4" | E95: 021 | F95: 13 | G95: STD BIOPROCESS CHROM HW | H95: 254 | I95: Std BPG | J95: 359 | K95: 3,234 | L95: 251 | M95: 2,264 | N95: 1,935 | O95: 70% | P95: 021 | Q95: 13 | R95: STD BIOPROCESS CHROM HW | S95: 254 | T95: Std BPG | U95: 345 | V95: 3,108 | W95: 242 | X95: 2,176 | Y95: Yes | Z95: Yes | AA95: 70% | AB95: 4% | AC95: 4%
A96: 18000547 | B96: 18000547 | C96: 18000547 | D96: Tubing L=2000mm, TC25mm, ID 1/4" | E96: 021 | F96: 13 | G96: STD BIOPROCESS CHROM HW | H96: 254 | I96: Std BPG | J96: 406 | K96: 3,658 | L96: 284 | M96: 2,560 | N96: 2,188 | O96: 70% | P96: 021 | Q96: 13 | R96: STD BIOPROCESS CHROM HW | S96: 254 | T96: Std BPG | U96: 390 | V96: 3,514 | W96: 273 | X96: 2,459 | Y96: Yes | Z96: Yes | AA96: 70% | AB96: 4% | AC96: 4%
A97: 18001959 | B97: 18001959 | C97: 18001959 | D97: Air Trap BPG 100/200 | E97: 021 | F97: 13 | G97: STD BIOPROCESS CHROM HW | H97: 254 | I97: Std BPG | J97: 3,323 | K97: 29,937 | L97: 2,326 | M97: 20,956 | N97: 17,911 | O97: 70% | P97: 021 | Q97: 13 | R97: STD BIOPROCESS CHROM HW | S97: 254 | T97: Std BPG | U97: 3,195 | V97: 28,784 | W97: 2,237 | X97: 20,149 | Y97: Yes | Z97: Yes | AA97: 70% | AB97: 4% | AC97: 4%
A98: 18020000 | B98: 18020000 | C98: 18020000 | D98: TC-Gasket 25mm ID 12mm EPDM | E98: 021 | F98: 13 | G98: STD BIOPROCESS CHROM HW | H98: 254 | I98: Std BPG | J98: 29 | K98: 261 | L98: 20 | M98: 183 | N98: 156 | O98: 70% | P98: 021 | Q98: 13 | R98: STD BIOPROCESS CHROM HW | S98: 254 | T98: Std BPG | U98: 28 | V98: 252 | W98: 20 | X98: 177 | Y98: Yes | Z98: Yes | AA98: 70% | AB98: 4% | AC98: 4%
A99: 18025137 | B99: 18025137 | C99: 18025137 | D99: TORQUE WRENCH BPG COL. 2-20Nm | E99: 021 | F99: 13 | G99: STD BIOPROCESS CHROM HW | H99: 254 | I99: Std BPG | J99: 362 | K99: 3,261 | L99: 253 | M99: 2,283 | N99: 1,951 | O99: 70% | P99: 021 | Q99: 13 | R99: STD BIOPROCESS CHROM HW | S99: 254 | T99: Std BPG | U99: 348 | V99: 3,135 | W99: 244 | X99: 2,195 | Y99: Yes | Z99: Yes | AA99: 70% | AB99: 4% | AC99: 4%
A100: 18025198 | B100: 18025198 | C100: 18025198 | D100: Connector TC25mm Clamp-1/4in Threaded | E100: 021 | F100: 13 | G100: STD BIOPROCESS CHROM HW | H100: 254 | I100: Std BPG | J100: 192 | K100: 1,730 | L100: 134 | M100: 1,211 | N100: 1,035 | O100: 70% | P100: 021 | Q100: 13 | R100: STD BIOPROCESS CHROM HW | S100: 254 | T100: Std BPG | U100: 185 | V100: 1,667 | W100: 130 | X100: 1,167 | Y100: Yes | Z100: Yes | AA100: 70% | AB100: 4% | AC100: 4%
A101: 18100002 | B101: 18100002 | C101: 18100002 | D101: INNER ADJUSTING TUBE | E101: 021 | F101: 13 | G101: STD BIOPROCESS CHROM HW | H101: 254 | I101: Std BPG | J101: 82 | K101: 739 | L101: 57 | M101: 517 | N101: 442 | O101: 70% | P101: 021 | Q101: 13 | R101: STD BIOPROCESS CHROM HW | S101: 254 | T101: Std BPG | U101: 79 | V101: 712 | W101: 55 | X101: 498 | Y101: Yes | Z101: Yes | AA101: 70% | AB101: 4% | AC101: 4%
A102: 18100004 | B102: 18100004 | C102: 18100004 | D102: ADJUSTING INNER ROD | E102: 021 | F102: 13 | G102: STD BIOPROCESS CHROM HW | H102: 254 | I102: Std BPG | J102: 85 | K102: 766 | L102: 85 | M102: 766 | N102: 655 | O102: 100% | P102: 021 | Q102: 13 | R102: STD BIOPROCESS CHROM HW | S102: 254 | T102: Std BPG | U102: 82 | V102: 739 | W102: 57 | X102: 517 | Y102: Yes | Z102: Yes | AA102: 70% | AB102: 4% | AC102: 48%
A103: 18100069 | B103: 18100069 | C103: 18100069 | D103: NET RING | E103: 021 | F103: 13 | G103: STD BIOPROCESS CHROM HW | H103: 254 | I103: Std BPG | J103: 94 | K103: 847 | L103: 66 | M103: 593 | N103: 507 | O103: 70% | P103: 021 | Q103: 13 | R103: STD BIOPROCESS CHROM HW | S103: 254 | T103: Std BPG | U103: 90 | V103: 811 | W103: 63 | X103: 568 | Y103: Yes | Z103: Yes | AA103: 70% | AB103: 4% | AC103: 4%
A104: 18100125 | B104: 18100125 | C104: 18100125 | D104: Blind Flange Incl. TC-Gasket 25mm | E104: 021 | F104: 13 | G104: STD BIOPROCESS CHROM HW | H104: 254 | I104: Std BPG | J104: 74 | K104: 667 | L104: 52 | M104: 467 | N104: 399 | O104: 70% | P104: 021 | Q104: 13 | R104: STD BIOPROCESS CHROM HW | S104: 254 | T104: Std BPG | U104: 71 | V104: 640 | W104: 50 | X104: 448 | Y104: Yes | Z104: Yes | AA104: 70% | AB104: 4% | AC104: 4%
A105: 18100363 | B105: 18100363 | C105: 18100363 | D105: T-Junction TC25/TC50mm ID 10mm | E105: 021 | F105: 13 | G105: STD BIOPROCESS CHROM HW | H105: 254 | I105: Std BPG | J105: 456 | K105: 4,108 | L105: 319 | M105: 2,876 | N105: 2,458 | O105: 70% | P105: 021 | Q105: 13 | R105: STD BIOPROCESS CHROM HW | S105: 254 | T105: Std BPG | U105: 438 | V105: 3,946 | W105: 307 | X105: 2,762 | Y105: Yes | Z105: Yes | AA105: 70% | AB105: 4% | AC105: 4%
A106: 18101257 | B106: 18101257 | C106: 18101257 | D106: VALVE 4-PORT,4-WAY,ID 10MM | E106: 021 | F106: 13 | G106: STD BIOPROCESS CHROM HW | H106: 254 | I106: Std BPG | J106: 2,016 | K106: 18,162 | L106: 1,411 | M106: 12,714 | N106: 10,866 | O106: 70% | P106: 021 | Q106: 13 | R106: STD BIOPROCESS CHROM HW | S106: 254 | T106: Std BPG | U106: 1,938 | V106: 17,459 | W106: 1,357 | X106: 12,222 | Y106: Yes | Z106: Yes | AA106: 70% | AB106: 4% | AC106: 4%
A107: 18101262 | B107: 18101262 | C107: 18101262 | D107: Tubing L=900 MM, TC25mm, ID 3/8" | E107: 021 | F107: 13 | G107: STD BIOPROCESS CHROM HW | H107: 254 | I107: Std BPG | J107: 339 | K107: 3,054 | L107: 237 | M107: 2,138 | N107: 1,827 | O107: 70% | P107: 021 | Q107: 13 | R107: STD BIOPROCESS CHROM HW | S107: 254 | T107: Std BPG | U107: 326 | V107: 2,937 | W107: 228 | X107: 2,056 | Y107: Yes | Z107: Yes | AA107: 70% | AB107: 4% | AC107: 4%
A108: 18101263 | B108: 18101263 | C108: 18101263 | D108: Tubing L=1400mm, TC25mm, ID 3/8" | E108: 021 | F108: 13 | G108: STD BIOPROCESS CHROM HW | H108: 254 | I108: Std BPG | J108: 353 | K108: 3,180 | L108: 247 | M108: 2,226 | N108: 1,903 | O108: 70% | P108: 021 | Q108: 13 | R108: STD BIOPROCESS CHROM HW | S108: 254 | T108: Std BPG | U108: 339 | V108: 3,054 | W108: 237 | X108: 2,138 | Y108: Yes | Z108: Yes | AA108: 70% | AB108: 4% | AC108: 4%
A109: 18101264 | B109: 18101264 | C109: 18101264 | D109: Tubing L=1700mm, TC25mm, ID 3/8" | E109: 021 | F109: 13 | G109: STD BIOPROCESS CHROM HW | H109: 254 | I109: Std BPG | J109: 382 | K109: 3,441 | L109: 267 | M109: 2,409 | N109: 2,059 | O109: 70% | P109: 021 | Q109: 13 | R109: STD BIOPROCESS CHROM HW | S109: 254 | T109: Std BPG | U109: 367 | V109: 3,306 | W109: 257 | X109: 2,314 | Y109: Yes | Z109: Yes | AA109: 70% | AB109: 4% | AC109: 4%
A110: 18101267 | B110: 18101267 | C110: 18101267 | D110: Connector TC25mm Clamp-6mm 1/2in Th | E110: 021 | F110: 13 | G110: STD BIOPROCESS CHROM HW | H110: 254 | I110: Std BPG | J110: 165 | K110: 1,486 | L110: 116 | M110: 1,041 | N110: 889 | O110: 70% | P110: 021 | Q110: 13 | R110: STD BIOPROCESS CHROM HW | S110: 254 | T110: Std BPG | U110: 159 | V110: 1,432 | W110: 111 | X110: 1,003 | Y110: Yes | Z110: Yes | AA110: 70% | AB110: 4% | AC110: 4%
A111: 18101268 | B111: 18101268 | C111: 18101268 | D111: Connector TC25mm Clamp-10mm 1/2in Th | E111: 021 | F111: 13 | G111: STD BIOPROCESS CHROM HW | H111: 254 | I111: Std BPG | J111: 354 | K111: 3,189 | L111: 354 | M111: 3,189 | N111: 2,726 | O111: 100% | P111: 021 | Q111: 13 | R111: STD BIOPROCESS CHROM HW | S111: 254 | T111: Std BPG | U111: 340 | V111: 3,063 | W111: 238 | X111: 2,144 | Y111: Yes | Z111: Yes | AA111: 70% | AB111: 4% | AC111: 49%
A112: 18101269 | B112: 18101269 | C112: 18101269 | D112: Connector TC25mm Clamp/ TC51mm | E112: 021 | F112: 13 | G112: STD BIOPROCESS CHROM HW | H112: 254 | I112: Std BPG | J112: 302 | K112: 2,721 | L112: 302 | M112: 2,721 | N112: 2,325 | O112: 100% | P112: 021 | Q112: 13 | R112: STD BIOPROCESS CHROM HW | S112: 254 | T112: Std BPG | U112: 290 | V112: 2,613 | W112: 203 | X112: 1,829 | Y112: Yes | Z112: Yes | AA112: 70% | AB112: 4% | AC112: 49%
A113: 18101285 | B113: 18101285 | C113: 18101285 | D113: Tubing L=300mm, TC25mm, ID 3/8" | E113: 021 | F113: 13 | G113: STD BIOPROCESS CHROM HW | H113: 254 | I113: Std BPG | J113: 320 | K113: 2,883 | L113: 224 | M113: 2,018 | N113: 1,725 | O113: 70% | P113: 021 | Q113: 13 | R113: STD BIOPROCESS CHROM HW | S113: 254 | T113: Std BPG | U113: 308 | V113: 2,775 | W113: 216 | X113: 1,942 | Y113: Yes | Z113: Yes | AA113: 70% | AB113: 4% | AC113: 4%
A114: 18101286 | B114: 18101286 | C114: 18101286 | D114: Tubing L=400mm, TC25mm, ID 3/8" | E114: 021 | F114: 13 | G114: STD BIOPROCESS CHROM HW | H114: 254 | I114: Std BPG | J114: 329 | K114: 2,964 | L114: 230 | M114: 2,075 | N114: 1,773 | O114: 70% | P114: 021 | Q114: 13 | R114: STD BIOPROCESS CHROM HW | S114: 254 | T114: Std BPG | U114: 316 | V114: 2,847 | W114: 221 | X114: 1,993 | Y114: Yes | Z114: Yes | AA114: 70% | AB114: 4% | AC114: 4%
A115: 18101287 | B115: 18101287 | C115: 18101287 | D115: Tubing L=2000mm, TC25mm, ID 3/8" | E115: 021 | F115: 13 | G115: STD BIOPROCESS CHROM HW | H115: 254 | I115: Std BPG | J115: 436 | K115: 3,928 | L115: 305 | M115: 2,750 | N115: 2,350 | O115: 70% | P115: 021 | Q115: 13 | R115: STD BIOPROCESS CHROM HW | S115: 254 | T115: Std BPG | U115: 419 | V115: 3,775 | W115: 293 | X115: 2,642 | Y115: Yes | Z115: Yes | AA115: 70% | AB115: 4% | AC115: 4%
A116: 18101288 | B116: 18101288 | C116: 18101288 | D116: TC-Gasket 50mm ID 35mm EPDM | E116: 021 | F116: 13 | G116: STD BIOPROCESS CHROM HW | H116: 254 | I116: Std BPG | J116: 151 | K116: 1,360 | L116: 151 | M116: 1,360 | N116: 1,163 | O116: 100% | P116: 021 | Q116: 13 | R116: STD BIOPROCESS CHROM HW | S116: 254 | T116: Std BPG | U116: 145 | V116: 1,306 | W116: 102 | X116: 914 | Y116: Yes | Z116: Yes | AA116: 70% | AB116: 4% | AC116: 49%
A117: 18102725 | B117: 18102725 | C117: 18102725 | D117: Connector TC25 ID10/TC51 ID14 | E117: 021 | F117: 13 | G117: STD BIOPROCESS CHROM HW | H117: 254 | I117: Std BPG | J117: 330 | K117: 2,973 | L117: 231 | M117: 2,081 | N117: 1,779 | O117: 70% | P117: 021 | Q117: 13 | R117: STD BIOPROCESS CHROM HW | S117: 254 | T117: Std BPG | U117: 317 | V117: 2,856 | W117: 222 | X117: 1,999 | Y117: Yes | Z117: Yes | AA117: 70% | AB117: 4% | AC117: 4%
A118: 18102726 | B118: 18102726 | C118: 18102726 | D118: Connector TC50 ID14 / TC50 ID22 | E118: 021 | F118: 13 | G118: STD BIOPROCESS CHROM HW | H118: 254 | I118: Std BPG | J118: 359 | K118: 3,234 | L118: 251 | M118: 2,264 | N118: 1,935 | O118: 70% | P118: 021 | Q118: 13 | R118: STD BIOPROCESS CHROM HW | S118: 254 | T118: Std BPG | U118: 345 | V118: 3,108 | W118: 242 | X118: 2,176 | Y118: Yes | Z118: Yes | AA118: 70% | AB118: 4% | AC118: 4%
A119: 18102728 | B119: 18102728 | C119: 18102728 | D119: Tubing L=750mm, TC25mm, ID 1/2" | E119: 021 | F119: 13 | G119: STD BIOPROCESS CHROM HW | H119: 254 | I119: Std BPG | J119: 356 | K119: 3,207 | L119: 249 | M119: 2,245 | N119: 1,919 | O119: 70% | P119: 021 | Q119: 13 | R119: STD BIOPROCESS CHROM HW | S119: 254 | T119: Std BPG | U119: 342 | V119: 3,081 | W119: 239 | X119: 2,157 | Y119: Yes | Z119: Yes | AA119: 70% | AB119: 4% | AC119: 4%
A120: 18102729 | B120: 18102729 | C120: 18102729 | D120: Tubing L=1800mm, TC25mm, ID 1/2" | E120: 021 | F120: 13 | G120: STD BIOPROCESS CHROM HW | H120: 254 | I120: Std BPG | J120: 443 | K120: 3,991 | L120: 310 | M120: 2,794 | N120: 2,388 | O120: 70% | P120: 021 | Q120: 13 | R120: STD BIOPROCESS CHROM HW | S120: 254 | T120: Std BPG | U120: 426 | V120: 3,838 | W120: 298 | X120: 2,686 | Y120: Yes | Z120: Yes | AA120: 70% | AB120: 4% | AC120: 4%
A121: 18103098 | B121: 18103098 | C121: 18103098 | D121: ALLEN KEY BPG | E121: 021 | F121: 13 | G121: STD BIOPROCESS CHROM HW | H121: 254 | I121: Std BPG | J121: 30 | K121: 270 | L121: 21 | M121: 189 | N121: 162 | O121: 70% | P121: 021 | Q121: 13 | R121: STD BIOPROCESS CHROM HW | S121: 254 | T121: Std BPG | U121: 29 | V121: 261 | W121: 20 | X121: 183 | Y121: Yes | Z121: Yes | AA121: 70% | AB121: 3% | AC121: 3%
A122: 18103103 | B122: 18103103 | C122: 18103103 | D122: 12-POINT OPENING SOCKET BPG 100 | E122: 021 | F122: 13 | G122: STD BIOPROCESS CHROM HW | H122: 254 | I122: Std BPG | J122: 68 | K122: 613 | L122: 68 | M122: 613 | N122: 524 | O122: 100% | P122: 021 | Q122: 13 | R122: STD BIOPROCESS CHROM HW | S122: 254 | T122: Std BPG | U122: 60 | V122: 541 | W122: 42 | X122: 378 | Y122: Yes | Z122: Yes | AA122: 70% | AB122: 13% | AC122: 62%
A123: 18103104 | B123: 18103104 | C123: 18103104 | D123: 12-POINT OPENING SOCKET BPG | E123: 021 | F123: 13 | G123: STD BIOPROCESS CHROM HW | H123: 254 | I123: Std BPG | J123: 61 | K123: 550 | L123: 43 | M123: 385 | N123: 329 | O123: 70% | P123: 021 | Q123: 13 | R123: STD BIOPROCESS CHROM HW | S123: 254 | T123: Std BPG | U123: 59 | V123: 532 | W123: 41 | X123: 372 | Y123: Yes | Z123: Yes | AA123: 70% | AB123: 3% | AC123: 3%
A124: 18103105 | B124: 18103105 | C124: 18103105 | D124: 12-POINT OPENING SOCKET BPG 300 | E124: 021 | F124: 13 | G124: STD BIOPROCESS CHROM HW | H124: 254 | I124: Std BPG | J124: 68 | K124: 613 | L124: 68 | M124: 613 | N124: 524 | O124: 100% | P124: 021 | Q124: 13 | R124: STD BIOPROCESS CHROM HW | S124: 254 | T124: Std BPG | U124: 60 | V124: 541 | W124: 42 | X124: 378 | Y124: Yes | Z124: Yes | AA124: 70% | AB124: 13% | AC124: 62%
A125: 18103107 | B125: 18103107 | C125: 18103107 | D125: Manometer Kit 0-10 Bar | E125: 021 | F125: 13 | G125: STD BIOPROCESS CHROM HW | H125: 254 | I125: Std BPG | J125: 2,904 | K125: 26,162 | L125: 2,033 | M125: 18,313 | N125: 15,653 | O125: 70% | P125: 021 | Q125: 13 | R125: STD BIOPROCESS CHROM HW | S125: 254 | T125: Std BPG | U125: 2,792 | V125: 25,153 | W125: 1,954 | X125: 17,607 | Y125: Yes | Z125: Yes | AA125: 70% | AB125: 4% | AC125: 4%
A126: 18103109 | B126: 18103109 | C126: 18103109 | D126: Connector TC25mm Clamp-M6 | E126: 021 | F126: 13 | G126: STD BIOPROCESS CHROM HW | H126: 254 | I126: Std BPG | J126: 111 | K126: 1,000 | L126: 78 | M126: 700 | N126: 598 | O126: 70% | P126: 021 | Q126: 13 | R126: STD BIOPROCESS CHROM HW | S126: 254 | T126: Std BPG | U126: 107 | V126: 964 | W126: 75 | X126: 675 | Y126: Yes | Z126: Yes | AA126: 70% | AB126: 4% | AC126: 4%
A127: 18103110 | B127: 18103110 | C127: 18103110 | D127: Column Stand 100 Columns | E127: 021 | F127: 13 | G127: STD BIOPROCESS CHROM HW | H127: 254 | I127: Std BPG | J127: 1,071 | K127: 9,649 | L127: 750 | M127: 6,754 | N127: 5,773 | O127: 70% | P127: 021 | Q127: 13 | R127: STD BIOPROCESS CHROM HW | S127: 254 | T127: Std BPG | U127: 1,030 | V127: 9,279 | W127: 721 | X127: 6,495 | Y127: Yes | Z127: Yes | AA127: 70% | AB127: 4% | AC127: 4%
A128: 18103120 | B128: 18103120 | C128: 18103120 | D128: Column Stand 140/200 Columns | E128: 021 | F128: 13 | G128: STD BIOPROCESS CHROM HW | H128: 254 | I128: Std BPG | J128: 2,109 | K128: 19,000 | L128: 1,476 | M128: 13,300 | N128: 11,368 | O128: 70% | P128: 021 | Q128: 13 | R128: STD BIOPROCESS CHROM HW | S128: 254 | T128: Std BPG | U128: 2,028 | V128: 18,270 | W128: 1,420 | X128: 12,789 | Y128: Yes | Z128: Yes | AA128: 70% | AB128: 4% | AC128: 4%
A129: 18103579 | B129: 18103579 | C129: 18103579 | D129: TC-Gasket 25mm ID 10.5mm EPDM | E129: 021 | F129: 13 | G129: STD BIOPROCESS CHROM HW | H129: 254 | I129: Std BPG | J129: 30 | K129: 270 | L129: 21 | M129: 189 | N129: 162 | O129: 70% | P129: 021 | Q129: 13 | R129: STD BIOPROCESS CHROM HW | S129: 254 | T129: Std BPG | U129: 29 | V129: 261 | W129: 20 | X129: 183 | Y129: Yes | Z129: Yes | AA129: 70% | AB129: 3% | AC129: 3%
A130: 18103580 | B130: 18103580 | C130: 18103580 | D130: Safety Valve 8.0 Bar | E130: 021 | F130: 13 | G130: STD BIOPROCESS CHROM HW | H130: 254 | I130: Std BPG | J130: 3,099 | K130: 27,919 | L130: 2,169 | M130: 19,543 | N130: 16,704 | O130: 70% | P130: 021 | Q130: 13 | R130: STD BIOPROCESS CHROM HW | S130: 254 | T130: Std BPG | U130: 2,980 | V130: 26,847 | W130: 2,086 | X130: 18,793 | Y130: Yes | Z130: Yes | AA130: 70% | AB130: =J130/U130-1 -> 4% | AC130: =L130/W130-1 -> 4%
A131: =TRIM(B131) -> 18103581 | B131: 18103581 | C131: 18103581 | D131: Safety Valve 6.0 Bar | E131: 021 | F131: 13 | G131: STD BIOPROCESS CHROM HW | H131: 254 | I131: Std BPG | J131: 3,099 | K131: 27,919 | L131: 2,169 | M131: =L131*9.009 -> 19,543 | N131: =M131/1.17 -> 16,704 | O131: =AA131 -> 70% | P131: 021 | Q131: 13 | R131: STD BIOPROCESS CHROM HW | S131: 254 | T131: Std BPG | U131: 2,980 | V131: 26,847 | W131: 2,086 | X131: 18,793 | Y131: Yes | Z131: Yes | AA131: =W131/U131 -> 70% | AB131: 4% | AC131: 4%
A132: 18103582 | B132: 18103582 | C132: 18103582 | D132: Safety Valve 4.0 Bar | E132: 021 | F132: 13 | G132: STD BIOPROCESS CHROM HW | H132: 254 | I132: Std BPG | J132: 2,946 | K132: 26,541 | L132: 2,062 | M132: 18,578 | N132: 15,879 | O132: 70% | P132: 021 | Q132: 13 | R132: STD BIOPROCESS CHROM HW | S132: 254 | T132: Std BPG | U132: 2,833 | V132: 25,522 | W132: 1,983 | X132: 17,866 | Y132: Yes | Z132: Yes | AA132: 70% | AB132: 4% | AC132: 4%
A133: 18106031 | B133: 18106031 | C133: 18106031 | D133: COLUMN AIR TRAP USER MANUAL | E133: 021 | F133: 13 | G133: STD BIOPROCESS CHROM HW | H133: 254 | I133: Std BPG | J133: 54 | K133: 486 | L133: 38 | M133: 341 | N133: 291 | O133: 70% | P133: 021 | Q133: 13 | R133: STD BIOPROCESS CHROM HW | S133: 254 | T133: Std BPG | U133: 52 | V133: 468 | W133: 36 | X133: 328 | Y133: Yes | Z133: Yes | AA133: 70% | AB133: 4% | AC133: 4%
A134: 18110296 | B134: 18110296 | C134: 18110296 | D134: Air Trap Complete BPG & INdEX 100 | E134: 021 | F134: 13 | G134: STD BIOPROCESS CHROM HW | H134: 254 | I134: Std BPG | J134: 7,793 | K134: 70,207 | L134: 5,455 | M134: 49,145 | N134: 42,004 | O134: 70% | P134: 021 | Q134: 13 | R134: STD BIOPROCESS CHROM HW | S134: 254 | T134: Std BPG | U134: 7,493 | V134: 67,504 | W134: 5,245 | X134: 47,253 | Y134: Yes | Z134: Yes | AA134: 70% | AB134: 4% | AC134: 4%
A135: 18110297 | B135: 18110297 | C135: 18110297 | D135: Air Trap Complete BPG & INdEX 200 | E135: 021 | F135: 13 | G135: STD BIOPROCESS CHROM HW | H135: 254 | I135: Std BPG | J135: 8,331 | K135: 75,054 | L135: 5,832 | M135: 52,538 | N135: 44,904 | O135: 70% | P135: 021 | Q135: 13 | R135: STD BIOPROCESS CHROM HW | S135: 254 | T135: Std BPG | U135: 8,011 | V135: 72,171 | W135: 5,608 | X135: 50,520 | Y135: Yes | Z135: Yes | AA135: 70% | AB135: 4% | AC135: 4%
A136: 18110298 | B136: 18110298 | C136: 18110298 | D136: Air Trap Complete BPG 300 | E136: 021 | F136: 13 | G136: STD BIOPROCESS CHROM HW | H136: 254 | I136: Std BPG | J136: 9,186 | K136: 82,757 | L136: 6,430 | M136: 57,930 | N136: 49,513 | O136: 70% | P136: 021 | Q136: 13 | R136: STD BIOPROCESS CHROM HW | S136: 254 | T136: Std BPG | U136: 8,833 | V136: 79,576 | W136: 6,183 | X136: 55,704 | Y136: Yes | Z136: Yes | AA136: 70% | AB136: 4% | AC136: 4%
A137: 18110300 | B137: 18110300 | C137: 18110300 | D137: Air Trap Complete BPG 450 | E137: 021 | F137: 13 | G137: STD BIOPROCESS CHROM HW | H137: 254 | I137: Std BPG | J137: 10,052 | K137: 90,558 | L137: 7,036 | M137: 63,391 | N137: 54,180 | O137: 70% | P137: 021 | Q137: 13 | R137: STD BIOPROCESS CHROM HW | S137: 254 | T137: Std BPG | U137: 9,665 | V137: 87,072 | W137: 6,766 | X137: 60,950 | Y137: Yes | Z137: Yes | AA137: 70% | AB137: 4% | AC137: 4%
A138: 18110301 | B138: 18110301 | C138: 18110301 | D138: BPG 100/500 | E138: 021 | F138: 13 | G138: STD BIOPROCESS CHROM HW | H138: 254 | I138: Std BPG | J138: 6,524 | K138: 58,775 | L138: 4,567 | M138: 41,142 | N138: 35,164 | O138: 70% | P138: 021 | Q138: 13 | R138: STD BIOPROCESS CHROM HW | S138: 254 | T138: Std BPG | U138: 6,273 | V138: 56,513 | W138: 4,391 | X138: 39,559 | Y138: Yes | Z138: Yes | AA138: 70% | AB138: 4% | AC138: 4%
A139: 18110302 | B139: 18110302 | C139: 18110302 | D139: BPG 100/750 | E139: 021 | F139: 13 | G139: STD BIOPROCESS CHROM HW | H139: 254 | I139: Std BPG | J139: 7,320 | K139: 65,946 | L139: 5,124 | M139: 46,162 | N139: 39,455 | O139: 70% | P139: 021 | Q139: 13 | R139: STD BIOPROCESS CHROM HW | S139: 254 | T139: Std BPG | U139: 7,038 | V139: 63,405 | W139: 4,927 | X139: 44,384 | Y139: Yes | Z139: Yes | AA139: 70% | AB139: 4% | AC139: 4%
A140: 18110303 | B140: 18110303 | C140: 18110303 | D140: BPG 100/950 | E140: 021 | F140: 13 | G140: STD BIOPROCESS CHROM HW | H140: 254 | I140: Std BPG | J140: 7,797 | K140: 70,243 | L140: 5,458 | M140: 49,170 | N140: 42,026 | O140: 70% | P140: 021 | Q140: 13 | R140: STD BIOPROCESS CHROM HW | S140: 254 | T140: Std BPG | U140: 7,497 | V140: 67,540 | W140: 5,248 | X140: 47,278 | Y140: Yes | Z140: Yes | AA140: 70% | AB140: 4% | AC140: 4%
A141: 18110311 | B141: 18110311 | C141: 18110311 | D141: BPG 200/500 | E141: 021 | F141: 13 | G141: STD BIOPROCESS CHROM HW | H141: 254 | I141: Std BPG | J141: 10,555 | K141: 95,090 | L141: 7,389 | M141: 66,563 | N141: 56,891 | O141: 70% | P141: 021 | Q141: 13 | R141: STD BIOPROCESS CHROM HW | S141: 254 | T141: Std BPG | U141: 10,149 | V141: 91,432 | W141: 7,104 | X141: 64,003 | Y141: Yes | Z141: Yes | AA141: 70% | AB141: 4% | AC141: 4%
A142: 18110312 | B142: 18110312 | C142: 18110312 | D142: BPG 200/750 | E142: 021 | F142: 13 | G142: STD BIOPROCESS CHROM HW | H142: 254 | I142: Std BPG | J142: 12,730 | K142: 114,685 | L142: 8,911 | M142: 80,279 | N142: 68,615 | O142: 70% | P142: 021 | Q142: 13 | R142: STD BIOPROCESS CHROM HW | S142: 254 | T142: Std BPG | U142: 12,240 | V142: 110,270 | W142: 8,568 | X142: 77,189 | Y142: Yes | Z142: Yes | AA142: 70% | AB142: 4% | AC142: 4%
A143: 18110313 | B143: 18110313 | C143: 18110313 | D143: BPG 200/950 | E143: 021 | F143: 13 | G143: STD BIOPROCESS CHROM HW | H143: 254 | I143: Std BPG | J143: 13,684 | K143: 123,279 | L143: 9,579 | M143: 86,295 | N143: 73,757 | O143: 70% | P143: 021 | Q143: 13 | R143: STD BIOPROCESS CHROM HW | S143: 254 | T143: Std BPG | U143: 13,158 | V143: 118,540 | W143: 9,211 | X143: 82,978 | Y143: Yes | Z143: Yes | AA143: 70% | AB143: 4% | AC143: 4%
A144: 18110321 | B144: 18110321 | C144: 18110321 | D144: BPG 300/500 | E144: 021 | F144: 13 | G144: STD BIOPROCESS CHROM HW | H144: 254 | I144: Std BPG | J144: 22,277 | K144: 200,693 | L144: 15,594 | M144: 140,485 | N144: 120,073 | O144: 70% | P144: 021 | Q144: 13 | R144: STD BIOPROCESS CHROM HW | S144: 254 | T144: Std BPG | U144: 21,420 | V144: 192,973 | W144: 14,994 | X144: 135,081 | Y144: Yes | Z144: Yes | AA144: 70% | AB144: 4% | AC144: 4%
A145: 18110322 | B145: 18110322 | C145: 18110322 | D145: BPG 300/750 | E145: 021 | F145: 13 | G145: STD BIOPROCESS CHROM HW | H145: 254 | I145: Std BPG | J145: 25,459 | K145: 229,360 | L145: 17,821 | M145: 160,552 | N145: 137,224 | O145: 70% | P145: 021 | Q145: 13 | R145: STD BIOPROCESS CHROM HW | S145: 254 | T145: Std BPG | U145: 24,480 | V145: 220,540 | W145: 17,136 | X145: 154,378 | Y145: Yes | Z145: Yes | AA145: 70% | AB145: 4% | AC145: 4%
A146: 18110323 | B146: 18110323 | C146: 18110323 | D146: BPG 300/950 | E146: 021 | F146: 13 | G146: STD BIOPROCESS CHROM HW | H146: 254 | I146: Std BPG | J146: 27,369 | K146: 246,567 | L146: 19,158 | M146: 172,597 | N146: 147,519 | O146: 70% | P146: 021 | Q146: 13 | R146: STD BIOPROCESS CHROM HW | S146: 254 | T146: Std BPG | U146: 26,316 | V146: 237,081 | W146: 18,421 | X146: 165,957 | Y146: Yes | Z146: Yes | AA146: 70% | AB146: 4% | AC146: 4%
A147: 18110361 | B147: 18110361 | C147: 18110361 | D147: STAND INDEX 140, 200 | E147: 021 | F147: 13 | G147: STD BIOPROCESS CHROM HW | H147: 234 | I147: Std Other | J147: 1,030 | K147: 9,279 | L147: 721 | M147: 6,495 | N147: 5,552 | O147: 70% | P147: 021 | Q147: 13 | R147: STD BIOPROCESS CHROM HW | S147: 234 | T147: Std Other | U147: 1,006 | V147: 9,063 | W147: 704 | X147: 6,344 | Y147: Yes | Z147: Yes | AA147: 70% | AB147: 2% | AC147: 2%
A148: 18110365 | B148: 18110365 | C148: 18110365 | D148: Safety Valve 2.5 Bar | E148: 021 | F148: 13 | G148: STD BIOPROCESS CHROM HW | H148: 254 | I148: Std BPG | J148: 2,722 | K148: 24,522 | L148: 1,905 | M148: 17,166 | N148: 14,672 | O148: 70% | P148: 021 | Q148: 13 | R148: STD BIOPROCESS CHROM HW | S148: 254 | T148: Std BPG | U148: 2,617 | V148: 23,577 | W148: 1,832 | X148: 16,504 | Y148: Yes | Z148: Yes | AA148: 70% | AB148: 4% | AC148: 4%
A149: 18110371 | B149: 18110371 | C149: 18110371 | D149: BPG 450/500 | E149: 021 | F149: 13 | G149: STD BIOPROCESS CHROM HW | H149: 254 | I149: Std BPG | J149: 54,101 | K149: 487,396 | L149: 37,871 | M149: 341,177 | N149: 291,604 | O149: 70% | P149: 021 | Q149: 13 | R149: STD BIOPROCESS CHROM HW | S149: 254 | T149: Std BPG | U149: 52,020 | V149: 468,648 | W149: 36,414 | X149: 328,054 | Y149: Yes | Z149: Yes | AA149: 70% | AB149: 4% | AC149: 4%
A150: 18110372 | B150: 18110372 | C150: 18110372 | D150: BPG 450/750 | E150: 021 | F150: 13 | G150: STD BIOPROCESS CHROM HW | H150: 254 | I150: Std BPG | J150: 62,587 | K150: 563,846 | L150: 43,811 | M150: 394,692 | N150: 337,344 | O150: 70% | P150: 021 | Q150: 13 | R150: STD BIOPROCESS CHROM HW | S150: 254 | T150: Std BPG | U150: 60,180 | V150: 542,162 | W150: 42,126 | X150: 379,513 | Y150: Yes | Z150: Yes | AA150: 70% | AB150: 4% | AC150: 4%
A151: 18110373 | B151: 18110373 | C151: 18110373 | D151: BPG 450/1000 | E151: 021 | F151: 13 | G151: STD BIOPROCESS CHROM HW | H151: 254 | I151: Std BPG | J151: 64,921 | K151: 584,873 | L151: 45,445 | M151: 409,411 | N151: 349,924 | O151: 70% | P151: 021 | Q151: 13 | R151: STD BIOPROCESS CHROM HW | S151: 254 | T151: Std BPG | U151: 62,424 | V151: 562,378 | W151: 43,697 | X151: 393,664 | Y151: Yes | Z151: Yes | AA151: 70% | AB151: 4% | AC151: 4%
A152: 18110402 | B152: 18110402 | C152: 18110402 | D152: LID INDEX | E152: 021 | F152: 13 | G152: STD BIOPROCESS CHROM HW | H152: 254 | I152: Std BPG | J152: 376 | K152: 3,387 | L152: 263 | M152: 2,371 | N152: 2,027 | O152: 70% | P152: 021 | Q152: 13 | R152: STD BIOPROCESS CHROM HW | S152: 254 | T152: Std BPG | U152: 362 | V152: 3,261 | W152: 253 | X152: 2,283 | Y152: Yes | Z152: Yes | AA152: 70% | AB152: 4% | AC152: 4%
A153: 18110415 | B153: 18110415 | C153: 18110415 | D153: INDEX COLUMN 100/500 | E153: 021 | F153: 13 | G153: STD BIOPROCESS CHROM HW | H153: 234 | I153: Std Other | J153: 4,760 | K153: 42,883 | L153: 3,332 | M153: 30,018 | N153: 25,656 | O153: 70% | P153: 021 | Q153: 13 | R153: STD BIOPROCESS CHROM HW | S153: 234 | T153: Std Other | U153: 4,648 | V153: 41,874 | W153: 3,254 | X153: 29,312 | Y153: Yes | Z153: Yes | AA153: 70% | AB153: 2% | AC153: 2%
A154: 18110416 | B154: 18110416 | C154: 18110416 | D154: INDEX COLUMN 100/950 | E154: 021 | F154: 13 | G154: STD BIOPROCESS CHROM HW | H154: 234 | I154: Std Other | J154: 5,401 | K154: 48,658 | L154: 3,781 | M154: 34,060 | N154: 29,111 | O154: 70% | P154: 021 | Q154: 13 | R154: STD BIOPROCESS CHROM HW | S154: 234 | T154: Std Other | U154: 5,274 | V154: 47,513 | W154: 3,692 | X154: 33,259 | Y154: Yes | Z154: Yes | AA154: 70% | AB154: 2% | AC154: 2%
A155: 18110417 | B155: 18110417 | C155: 18110417 | D155: INDEX COLUMN 200/500 | E155: 021 | F155: 13 | G155: STD BIOPROCESS CHROM HW | H155: 234 | I155: Std Other | J155: 7,072 | K155: 63,712 | L155: 4,950 | M155: 44,598 | N155: 38,118 | O155: 70% | P155: 021 | Q155: 13 | R155: STD BIOPROCESS CHROM HW | S155: 234 | T155: Std Other | U155: 6,906 | V155: 62,216 | W155: 4,834 | X155: 43,551 | Y155: Yes | Z155: Yes | AA155: 70% | AB155: 2% | AC155: 2%
A156: 18110418 | B156: 18110418 | C156: 18110418 | D156: INDEX COLUMN 200/950 | E156: 021 | F156: 13 | G156: STD BIOPROCESS CHROM HW | H156: 234 | I156: Std Other | J156: 10,152 | K156: =J156*9.009 -> 91,459 | L156: =J156*O156 -> 7,106 | M156: 64,022 | N156: 54,719 | O156: 70% | P156: 021 | Q156: 13 | R156: STD BIOPROCESS CHROM HW | S156: 234 | T156: Std Other | U156: 9,914 | V156: 89,315 | W156: 6,940 | X156: 62,521 | Y156: Yes | Z156: Yes | AA156: 70% | AB156: 2% | AC156: 2%
A157: 18110422 | B157: 18110422 | C157: 18110422 | D157: PACKING DEVICE INDEX 100 GLASS | E157: 021 | F157: 13 | G157: STD BIOPROCESS CHROM HW | H157: 234 | I157: Std Other | J157: 3,273 | K157: 29,486 | L157: 2,291 | M157: 20,641 | N157: 17,641 | O157: 70% | P157: 021 | Q157: 13 | R157: STD BIOPROCESS CHROM HW | S157: 234 | T157: Std Other | U157: 3,196 | V157: 28,793 | W157: 2,237 | X157: 20,155 | Y157: Yes | Z157: Yes | AA157: 70% | AB157: 2% | AC157: 2%
A158: 18110423 | B158: 18110423 | C158: 18110423 | D158: PACKING DEVICE INDEX 200 GLASS | E158: 021 | F158: 13 | G158: STD BIOPROCESS CHROM HW | H158: 234 | I158: Std Other | J158: 5,307 | K158: 47,811 | L158: 3,715 | M158: 33,468 | N158: 28,605 | O158: 70% | P158: 021 | Q158: 13 | R158: STD BIOPROCESS CHROM HW | S158: 234 | T158: Std Other | U158: 5,183 | V158: 46,694 | W158: 3,628 | X158: 32,686 | Y158: Yes | Z158: Yes | AA158: 70% | AB158: 2% | AC158: 2%
A159: 18110429 | B159: 18110429 | C159: 18110429 | D159: T-Junction TC25/TC50mm ID 6 mm | E159: 021 | F159: 13 | G159: STD BIOPROCESS CHROM HW | H159: 254 | I159: Std BPG | J159: 467 | K159: 4,207 | L159: 467 | M159: 4,207 | N159: 3,596 | O159: 100% | P159: 021 | Q159: 13 | R159: STD BIOPROCESS CHROM HW | S159: 254 | T159: Std BPG | U159: 449 | V159: 4,045 | W159: 314 | X159: 2,832 | Y159: Yes | Z159: Yes | AA159: 70% | AB159: 4% | AC159: 49%
A160: 18110475 | B160: 18110475 | C160: 18110475 | D160: Packing Device BPG 100 Glass | E160: 021 | F160: 13 | G160: STD BIOPROCESS CHROM HW | H160: 254 | I160: Std BPG | J160: 3,180 | K160: 28,649 | L160: 2,226 | M160: 20,054 | N160: 17,140 | O160: 70% | P160: 021 | Q160: 13 | R160: STD BIOPROCESS CHROM HW | S160: 254 | T160: Std BPG | U160: 3,058 | V160: 27,550 | W160: 2,141 | X160: 19,285 | Y160: Yes | Z160: Yes | AA160: 70% | AB160: 4% | AC160: 4%
A161: 18110477 | B161: 18110477 | C161: 18110477 | D161: Packing Device BPG 200 Glass | E161: 021 | F161: 13 | G161: STD BIOPROCESS CHROM HW | H161: 254 | I161: Std BPG | J161: 4,400 | K161: 39,640 | L161: 3,080 | M161: 27,748 | N161: 23,716 | O161: 70% | P161: 021 | Q161: 13 | R161: STD BIOPROCESS CHROM HW | S161: 254 | T161: Std BPG | U161: 4,231 | V161: 38,117 | W161: 2,962 | X161: 26,682 | Y161: Yes | Z161: Yes | AA161: 70% | AB161: 4% | AC161: 4%
A162: 18110531 | B162: 18110531 | C162: 18110531 | D162: 12-POINT OPENING SOCKET BPG 450 | E162: 021 | F162: 13 | G162: STD BIOPROCESS CHROM HW | H162: 254 | I162: Std BPG | J162: 75 | K162: 676 | L162: 75 | M162: 676 | N162: 578 | O162: 100% | P162: 021 | Q162: 13 | R162: STD BIOPROCESS CHROM HW | S162: 254 | T162: Std BPG | U162: 65 | V162: 586 | W162: 46 | X162: 410 | Y162: Yes | Z162: Yes | AA162: 70% | AB162: 15% | AC162: 65%
A163: 18110532 | B163: 18110532 | C163: 18110532 | D163: Packing Device BPG 450 | E163: 021 | F163: 13 | G163: STD BIOPROCESS CHROM HW | H163: 254 | I163: Std BPG | J163: 9,483 | K163: 85,432 | L163: 6,638 | M163: 59,803 | N163: 51,113 | O163: 70% | P163: 021 | Q163: 13 | R163: STD BIOPROCESS CHROM HW | S163: 254 | T163: Std BPG | U163: 9,118 | V163: 82,144 | W163: 6,383 | X163: 57,501 | Y163: Yes | Z163: Yes | AA163: 70% | AB163: 4% | AC163: 4%
A164: 18110816 | B164: 18110816 | C164: 18110816 | D164: Packing Device BPG 300 Glass | E164: 021 | F164: 13 | G164: STD BIOPROCESS CHROM HW | H164: 254 | I164: Std BPG | J164: 9,128 | K164: 82,234 | L164: 6,390 | M164: 57,564 | N164: 49,200 | O164: 70% | P164: 021 | Q164: 13 | R164: STD BIOPROCESS CHROM HW | S164: 254 | T164: Std BPG | U164: 8,777 | V164: 79,072 | W164: 6,144 | X164: 55,350 | Y164: Yes | Z164: Yes | AA164: 70% | AB164: 4% | AC164: 4%
A165: 18110863 | B165: 18110863 | C165: 18110863 | D165: LID KIT PACKING DEVICE INDEX 100 | E165: 021 | F165: 13 | G165: STD BIOPROCESS CHROM HW | H165: 234 | I165: Std Other | J165: 580 | K165: 5,225 | L165: 406 | M165: 3,658 | N165: 3,126 | O165: 70% | P165: 021 | Q165: 13 | R165: STD BIOPROCESS CHROM HW | S165: 234 | T165: Std Other | U165: 566 | V165: 5,099 | W165: 396 | X165: 3,569 | Y165: Yes | Z165: Yes | AA165: 70% | AB165: 2% | AC165: 2%
A166: 18110864 | B166: 18110864 | C166: 18110864 | D166: LID KIT PACKING DEVICE INDEX 200 | E166: 021 | F166: 13 | G166: STD BIOPROCESS CHROM HW | H166: 234 | I166: Std Other | J166: 735 | K166: 6,622 | L166: 515 | M166: 4,635 | N166: 3,962 | O166: 70% | P166: 021 | Q166: 13 | R166: STD BIOPROCESS CHROM HW | S166: 234 | T166: Std Other | U166: 718 | V166: 6,468 | W166: 503 | X166: 4,528 | Y166: Yes | Z166: Yes | AA166: 70% | AB166: 2% | AC166: 2%
A167: 18111308 | B167: 18111308 | C167: 18111308 | D167: BPG 140/500 | E167: 021 | F167: 13 | G167: STD BIOPROCESS CHROM HW | H167: 254 | I167: Std BPG | J167: 9,441 | K167: 85,054 | L167: 6,609 | M167: 59,538 | N167: 50,887 | O167: 70% | P167: 021 | Q167: 13 | R167: STD BIOPROCESS CHROM HW | S167: 254 | T167: Std BPG | U167: 9,078 | V167: 81,784 | W167: 6,355 | X167: 57,249 | Y167: Yes | Z167: Yes | AA167: 70% | AB167: 4% | AC167: 4%
A168: 18111309 | B168: 18111309 | C168: 18111309 | D168: BPG 140/950 | E168: 021 | F168: 13 | G168: STD BIOPROCESS CHROM HW | H168: 254 | I168: Std BPG | J168: 12,199 | K168: 109,901 | L168: 8,539 | M168: 76,931 | N168: 65,753 | O168: 70% | P168: 021 | Q168: 13 | R168: STD BIOPROCESS CHROM HW | S168: 254 | T168: Std BPG | U168: 11,730 | V168: 105,676 | W168: 8,211 | X168: 73,973 | Y168: Yes | Z168: Yes | AA168: 70% | AB168: 4% | AC168: 4%
A169: 18111333 | B169: 18111333 | C169: 18111333 | D169: Packing Device BPG 140 Glass | E169: 021 | F169: 13 | G169: STD BIOPROCESS CHROM HW | H169: 254 | I169: Std BPG | J169: 3,709 | K169: 33,414 | L169: 2,596 | M169: 23,390 | N169: 19,992 | O169: 70% | P169: 021 | Q169: 13 | R169: STD BIOPROCESS CHROM HW | S169: 254 | T169: Std BPG | U169: 3,566 | V169: 32,126 | W169: 2,496 | X169: 22,488 | Y169: Yes | Z169: Yes | AA169: 70% | AB169: 4% | AC169: 4%
A170: 18111435 | B170: 18111435 | C170: 18111435 | D170: PACKING DEVICE INDEX 70 | E170: 021 | F170: 13 | G170: STD BIOPROCESS CHROM HW | H170: 234 | I170: Std Other | J170: 2,823 | K170: 25,432 | L170: 1,976 | M170: 17,803 | N170: 15,216 | O170: 70% | P170: 021 | Q170: 13 | R170: STD BIOPROCESS CHROM HW | S170: 234 | T170: Std Other | U170: 2,757 | V170: 24,838 | W170: 1,930 | X170: 17,386 | Y170: Yes | Z170: Yes | AA170: 70% | AB170: 2% | AC170: 2%
A171: 18111436 | B171: 18111436 | C171: 18111436 | D171: PACKING DEVICE INDEX 140 | E171: 021 | F171: 13 | G171: STD BIOPROCESS CHROM HW | H171: 234 | I171: Std Other | J171: 4,828 | K171: 43,495 | L171: 3,380 | M171: 30,447 | N171: 26,023 | O171: 70% | P171: 021 | Q171: 13 | R171: STD BIOPROCESS CHROM HW | S171: 234 | T171: Std Other | U171: 4,715 | V171: 42,477 | W171: 3,301 | X171: 29,734 | Y171: Yes | Z171: Yes | AA171: 70% | AB171: 2% | AC171: 2%
A172: 18111506 | B172: 18111506 | C172: 18111506 | D172: INDEX COLUMN 70 500 | E172: 021 | F172: 13 | G172: STD BIOPROCESS CHROM HW | H172: 234 | I172: Std Other | J172: 4,248 | K172: 38,270 | L172: 2,974 | M172: 26,789 | N172: 22,897 | O172: 70% | P172: 021 | Q172: 13 | R172: STD BIOPROCESS CHROM HW | S172: 234 | T172: Std Other | U172: 4,148 | V172: 37,369 | W172: 2,904 | X172: 26,159 | Y172: Yes | Z172: Yes | AA172: 70% | AB172: 2% | AC172: 2%
A173: 18111507 | B173: 18111507 | C173: 18111507 | D173: INDEX COLUMN 70/950 | E173: 021 | F173: 13 | G173: STD BIOPROCESS CHROM HW | H173: 234 | I173: Std Other | J173: 4,899 | K173: 44,135 | L173: 3,429 | M173: 30,895 | N173: 26,406 | O173: 70% | P173: 021 | Q173: 13 | R173: STD BIOPROCESS CHROM HW | S173: 234 | T173: Std Other | U173: 4,784 | V173: 43,099 | W173: 3,349 | X173: 30,169 | Y173: Yes | Z173: Yes | AA173: 70% | AB173: 2% | AC173: 2%
A174: 18111508 | B174: 18111508 | C174: 18111508 | D174: INDEX COLUMN 140/500 | E174: 021 | F174: 13 | G174: STD BIOPROCESS CHROM HW | H174: 234 | I174: Std Other | J174: 6,624 | K174: 59,676 | L174: 4,637 | M174: 41,773 | N174: 35,703 | O174: 70% | P174: 021 | Q174: 13 | R174: STD BIOPROCESS CHROM HW | S174: 234 | T174: Std Other | U174: 6,469 | V174: 58,279 | W174: 4,528 | X174: 40,795 | Y174: Yes | Z174: Yes | AA174: 70% | AB174: 2% | AC174: 2%
A175: 18111509 | B175: 18111509 | C175: 18111509 | D175: INDEX COLUMN 140/950 | E175: 021 | F175: 13 | G175: STD BIOPROCESS CHROM HW | H175: 234 | I175: Std Other | J175: 8,895 | K175: 80,135 | L175: 6,227 | M175: 56,095 | N175: 47,944 | O175: 70% | P175: 021 | Q175: 13 | R175: STD BIOPROCESS CHROM HW | S175: 234 | T175: Std Other | U175: 8,687 | V175: 78,261 | W175: 6,081 | X175: 54,783 | Y175: Yes | Z175: Yes | AA175: 70% | AB175: 2% | AC175: 2%
A176: 18111928 | B176: 18111928 | C176: 18111928 | D176: Manometer Kit 0-6 Bar | E176: 021 | F176: 13 | G176: STD BIOPROCESS CHROM HW | H176: 254 | I176: Std BPG | J176: 1,998 | K176: 18,000 | L176: 1,399 | M176: 12,600 | N176: 10,769 | O176: 70% | P176: 021 | Q176: 13 | R176: STD BIOPROCESS CHROM HW | S176: 254 | T176: Std BPG | U176: 1,921 | V176: 17,306 | W176: 1,345 | X176: 12,114 | Y176: Yes | Z176: Yes | AA176: 70% | AB176: 4% | AC176: 4%
A177: 18112144 | B177: 18112144 | C177: 18112144 | D177: Top Valve for Air Traps | E177: 021 | F177: 13 | G177: STD BIOPROCESS CHROM HW | H177: 254 | I177: Std BPG | J177: 1,410 | K177: 12,703 | L177: 987 | M177: 8,892 | N177: 7,600 | O177: 70% | P177: 021 | Q177: 13 | R177: STD BIOPROCESS CHROM HW | S177: 254 | T177: Std BPG | U177: 1,356 | V177: 12,216 | W177: 949 | X177: 8,551 | Y177: Yes | Z177: Yes | AA177: 70% | AB177: 4% | AC177: 4%
A178: 18112288 | B178: 18112288 | C178: 18112288 | D178: UM FINELINE 100/100L, 200/200L | E178: 021 | F178: 13 | G178: STD BIOPROCESS CHROM HW | H178: 258 | I178: Std FineLINE | J178: 20 | K178: 180 | L178: 14 | M178: 126 | N178: 108 | O178: 70% | P178: 021 | Q178: 13 | R178: STD BIOPROCESS CHROM HW | S178: 258 | T178: Std FineLINE | U178: 20 | V178: 180 | W178: 14 | X178: 126 | Y178: Yes | Z178: Yes | AA178: 70% | AB178: 0% | AC178: 0%
A179: 18112694 | B179: 18112694 | C179: 18112694 | D179: ELUTRATING SEAL. RING STRL 100 | E179: 021 | F179: 13 | G179: STD BIOPROCESS CHROM HW | H179: 254 | I179: Std BPG | J179: 130 | K179: 1,171 | L179: 91 | M179: 820 | N179: 701 | O179: 70% | P179: 021 | Q179: 13 | R179: STD BIOPROCESS CHROM HW | S179: 254 | T179: Std BPG | U179: 125 | V179: 1,126 | W179: 88 | X179: 788 | Y179: Yes | Z179: Yes | AA179: 70% | AB179: 4% | AC179: 4%
A180: 18112799 | B180: 18112799 | C180: 18112799 | D180: END PIECE NET FINELINE 100 10M | E180: 021 | F180: 49 | G180: CBS | H180: 259 | I180: CBS Columns | J180: 1,762 | K180: 15,874 | L180: 1,233 | M180: 11,112 | N180: 9,497 | O180: 70% | P180: 021 | Q180: 49 | R180: CBS | S180: 259 | T180: CBS Columns | U180: 1,762 | V180: 15,874 | W180: 1,233 | X180: 11,112 | Y180: Yes | Z180: Yes | AA180: 70% | AB180: 0% | AC180: 0%
A181: 18112800 | B181: 18112800 | C181: 18112800 | D181: ADAPTOR NET FINELINE 100 10 MY | E181: 021 | F181: 49 | G181: CBS | H181: 259 | I181: CBS Columns | J181: 1,562 | K181: 14,072 | L181: 1,093 | M181: 9,850 | N181: 8,419 | O181: 70% | P181: 021 | Q181: 49 | R181: CBS | S181: 259 | T181: CBS Columns | U181: 1,562 | V181: 14,072 | W181: 1,093 | X181: 9,850 | Y181: Yes | Z181: Yes | AA181: 70% | AB181: 0% | AC181: 0%
A182: 18114748 | B182: 18114748 | C182: 18114748 | D182: Sealing Unit BPG 200 | E182: 021 | F182: 13 | G182: STD BIOPROCESS CHROM HW | H182: 254 | I182: Std BPG | J182: 998 | K182: 8,991 | L182: 699 | M182: 6,294 | N182: 5,379 | O182: 70% | P182: 021 | Q182: 13 | R182: STD BIOPROCESS CHROM HW | S182: 254 | T182: Std BPG | U182: 960 | V182: 8,649 | W182: 672 | X182: 6,054 | Y182: Yes | Z182: Yes | AA182: 70% | AB182: 4% | AC182: 4%
A183: 18114749 | B183: 18114749 | C183: 18114749 | D183: Sealing Unit BPG 300 | E183: 021 | F183: 13 | G183: STD BIOPROCESS CHROM HW | H183: 254 | I183: Std BPG | J183: 1,210 | K183: 10,901 | L183: 847 | M183: 7,631 | N183: 6,522 | O183: 70% | P183: 021 | Q183: 13 | R183: STD BIOPROCESS CHROM HW | S183: 254 | T183: Std BPG | U183: 1,163 | V183: 10,477 | W183: 814 | X183: 7,334 | Y183: Yes | Z183: Yes | AA183: 70% | AB183: 4% | AC183: 4%
A184: 18117070 | B184: 18117070 | C184: 18117070 | D184: BPG Columns INSTRUCTIONS FOR USE | E184: 021 | F184: 13 | G184: STD BIOPROCESS CHROM HW | H184: 254 | I184: Std BPG | J184: 18 | K184: 162 | L184: 18 | M184: 162 | N184: 139 | O184: 100% | P184: 021 | Q184: 13 | R184: STD BIOPROCESS CHROM HW | S184: 254 | T184: Std BPG | U184: 17 | V184: 153 | W184: 12 | X184: 107 | Y184: Yes | Z184: Yes | AA184: 70% | AB184: 6% | AC184: 51%
A185: 18117193 | B185: 18117193 | C185: 18117193 | D185: CHROM PIPING NOZZLE 800 3/4 | E185: 021 | F185: 13 | G185: STD BIOPROCESS CHROM HW | H185: 257 | I185: Std Chromaflow | J185: 2,850 | K185: 25,676 | L185: 1,995 | M185: 17,973 | N185: 15,362 | O185: 70% | P185: 021 | Q185: 13 | R185: STD BIOPROCESS CHROM HW | S185: 257 | T185: Std Chromaflow | U185: 2,794 | V185: 25,171 | W185: 1,956 | X185: 17,620 | Y185: Yes | Z185: Yes | AA185: 70% | AB185: 2% | AC185: 2%
A186: 18117200 | B186: 18117200 | C186: 18117200 | D186: CHROMAFLOW NOZZLE PIP.400,3/4in | E186: 021 | F186: 13 | G186: STD BIOPROCESS CHROM HW | H186: 257 | I186: Std Chromaflow | J186: 2,850 | K186: 25,676 | L186: 1,995 | M186: 17,973 | N186: 15,362 | O186: 70% | P186: 021 | Q186: 13 | R186: STD BIOPROCESS CHROM HW | S186: 257 | T186: Std Chromaflow | U186: 2,794 | V186: 25,171 | W186: 1,956 | X186: 17,620 | Y186: Yes | Z186: Yes | AA186: 70% | AB186: 2% | AC186: 2%
A187: 18117201 | B187: 18117201 | C187: 18117201 | D187: CHROMAFLOW NOZZLE PIP.400 1/2in | E187: 021 | F187: 13 | G187: STD BIOPROCESS CHROM HW | H187: 257 | I187: Std Chromaflow | J187: 2,850 | K187: 25,676 | L187: 1,995 | M187: 17,973 | N187: 15,362 | O187: 70% | P187: 021 | Q187: 13 | R187: STD BIOPROCESS CHROM HW | S187: 257 | T187: Std Chromaflow | U187: 2,794 | V187: 25,171 | W187: 1,956 | X187: 17,620 | Y187: Yes | Z187: Yes | AA187: 70% | AB187: 2% | AC187: 2%
A188: 18117204 | B188: 18117204 | C188: 18117204 | D188: CHROM.NOZZLE PIPING 600 1in | E188: 021 | F188: 13 | G188: STD BIOPROCESS CHROM HW | H188: 257 | I188: Std Chromaflow | J188: 2,850 | K188: 25,676 | L188: 1,995 | M188: 17,973 | N188: 15,362 | O188: 70% | P188: 021 | Q188: 13 | R188: STD BIOPROCESS CHROM HW | S188: 257 | T188: Std Chromaflow | U188: 2,794 | V188: 25,171 | W188: 1,956 | X188: 17,620 | Y188: Yes | Z188: Yes | AA188: 70% | AB188: 2% | AC188: 2%
A189: 18117205 | B189: 18117205 | C189: 18117205 | D189: CHROM NOZZLE PIPING 600 3/4 | E189: 021 | F189: 13 | G189: STD BIOPROCESS CHROM HW | H189: 257 | I189: Std Chromaflow | J189: 2,850 | K189: 25,676 | L189: 1,995 | M189: 17,973 | N189: 15,362 | O189: 70% | P189: 021 | Q189: 13 | R189: STD BIOPROCESS CHROM HW | S189: 257 | T189: Std Chromaflow | U189: 2,794 | V189: 25,171 | W189: 1,956 | X189: 17,620 | Y189: Yes | Z189: Yes | AA189: 70% | AB189: 2% | AC189: 2%
A190: 18117206 | B190: 18117206 | C190: 18117206 | D190: CHROM NOZZLE PIPING 600 1/2 | E190: 021 | F190: 13 | G190: STD BIOPROCESS CHROM HW | H190: 257 | I190: Std Chromaflow | J190: 2,850 | K190: 25,676 | L190: 1,995 | M190: 17,973 | N190: 15,362 | O190: 70% | P190: 021 | Q190: 13 | R190: STD BIOPROCESS CHROM HW | S190: 257 | T190: Std Chromaflow | U190: 2,794 | V190: 25,171 | W190: 1,956 | X190: 17,620 | Y190: Yes | Z190: Yes | AA190: 70% | AB190: 2% | AC190: 2%
A191: 18117411 | B191: 18117411 | C191: 18117411 | D191: CONNECTORTC50.5/ID22-TC25/ID10 | E191: 021 | F191: 13 | G191: STD BIOPROCESS CHROM HW | H191: 254 | I191: Std BPG | J191: 549 | K191: 4,946 | L191: 384 | M191: 3,462 | N191: 2,959 | O191: 70% | P191: 021 | Q191: 13 | R191: STD BIOPROCESS CHROM HW | S191: 254 | T191: Std BPG | U191: 528 | V191: 4,757 | W191: 370 | X191: 3,330 | Y191: Yes | Z191: Yes | AA191: 70% | AB191: 4% | AC191: 4%
A192: 18117412 | B192: 18117412 | C192: 18117412 | D192: CONNECTORTC50.5/ID22-TC25/ID14 | E192: 021 | F192: 13 | G192: STD BIOPROCESS CHROM HW | H192: 254 | I192: Std BPG | J192: 549 | K192: 4,946 | L192: 384 | M192: 3,462 | N192: 2,959 | O192: 70% | P192: 021 | Q192: 13 | R192: STD BIOPROCESS CHROM HW | S192: 254 | T192: Std BPG | U192: 528 | V192: 4,757 | W192: 370 | X192: 3,330 | Y192: Yes | Z192: Yes | AA192: 70% | AB192: 4% | AC192: 4%
A193: 18575801 | B193: 18575801 | C193: 18575801 | D193: VALVE 4-PORT 4-WAY ID 6 MM | E193: 021 | F193: 13 | G193: STD BIOPROCESS CHROM HW | H193: 254 | I193: Std BPG | J193: 1,808 | K193: 16,288 | L193: 1,266 | M193: 11,402 | N193: 9,745 | O193: 70% | P193: 021 | Q193: 13 | R193: STD BIOPROCESS CHROM HW | S193: 254 | T193: Std BPG | U193: 1,738 | V193: 15,658 | W193: 1,217 | X193: 10,960 | Y193: Yes | Z193: Yes | AA193: 70% | AB193: 4% | AC193: 4%
A194: 18687901 | B194: 18687901 | C194: 18687901 | D194: TUBING CONNECTOR (40-8-6) | E194: 021 | F194: 13 | G194: STD BIOPROCESS CHROM HW | H194: 254 | I194: Std BPG | J194: 103 | K194: 928 | L194: 103 | M194: 928 | N194: 793 | O194: 100% | P194: 021 | Q194: 13 | R194: STD BIOPROCESS CHROM HW | S194: 254 | T194: Std BPG | U194: 90 | V194: 811 | W194: 63 | X194: 568 | Y194: Yes | Z194: Yes | AA194: 70% | AB194: =J194/U194-1 -> 14% | AC194: =L194/W194-1 -> 63%
A195: =TRIM(B195) -> 19027101 | B195: 19027101 | C195: 19027101 | D195: ANGLED CONNECTOR (40-4-2) | E195: 021 | F195: 13 | G195: STD BIOPROCESS CHROM HW | H195: 254 | I195: Std BPG | J195: 83 | K195: 748 | L195: 83 | M195: =L195*9.009 -> 748 | N195: =M195/1.17 -> 639 | O195: 100% | P195: 021 | Q195: 13 | R195: STD BIOPROCESS CHROM HW | S195: 254 | T195: Std BPG | U195: 72 | V195: 649 | W195: 50 | X195: 454 | Y195: Yes | Z195: Yes | AA195: =W195/U195 -> 70% | AB195: 15% | AC195: 65%
A196: 19027201 | B196: 19027201 | C196: 19027201 | D196: ANGLED CONNECTOR (40-4-6) | E196: 021 | F196: 13 | G196: STD BIOPROCESS CHROM HW | H196: 254 | I196: Std BPG | J196: 89 | K196: 802 | L196: 89 | M196: 802 | N196: 685 | O196: 100% | P196: 021 | Q196: 13 | R196: STD BIOPROCESS CHROM HW | S196: 254 | T196: Std BPG | U196: 78 | V196: 703 | W196: 55 | X196: 492 | Y196: Yes | Z196: Yes | AA196: 70% | AB196: 14% | AC196: 63%
A197: 19027301 | B197: 19027301 | C197: 19027301 | D197: STRAIGHT CONNECTOR (10-4-2) | E197: 021 | F197: 13 | G197: STD BIOPROCESS CHROM HW | H197: 254 | I197: Std BPG | J197: 111 | K197: 1,000 | L197: 78 | M197: 700 | N197: 598 | O197: =AA197 -> 70% | P197: 021 | Q197: 13 | R197: STD BIOPROCESS CHROM HW | S197: 254 | T197: Std BPG | U197: 107 | V197: 964 | W197: 75 | X197: 675 | Y197: Yes | Z197: Yes | AA197: 70% | AB197: 4% | AC197: 4%
A198: 19029101 | B198: 19029101 | C198: 19029101 | D198: O-RING | E198: 021 | F198: 13 | G198: STD BIOPROCESS CHROM HW | H198: 254 | I198: Std BPG | J198: 156 | K198: 1,405 | L198: 109 | M198: 984 | N198: 841 | O198: 70% | P198: 021 | Q198: 13 | R198: STD BIOPROCESS CHROM HW | S198: 254 | T198: Std BPG | U198: 150 | V198: 1,351 | W198: 105 | X198: 946 | Y198: Yes | Z198: Yes | AA198: 70% | AB198: 4% | AC198: 4%
A199: 19029901 | B199: 19029901 | C199: 19029901 | D199: POSITION PIN | E199: 021 | F199: 13 | G199: STD BIOPROCESS CHROM HW | H199: 254 | I199: Std BPG | J199: 95 | K199: 856 | L199: 95 | M199: 856 | N199: 732 | O199: 100% | P199: 021 | Q199: 13 | R199: STD BIOPROCESS CHROM HW | S199: 254 | T199: Std BPG | U199: 91 | V199: 820 | W199: 64 | X199: 574 | Y199: Yes | Z199: Yes | AA199: 70% | AB199: 4% | AC199: 49%
A200: 19033601 | B200: 19033601 | C200: 19033601 | D200: NUT SEGMENT | E200: 021 | F200: 13 | G200: STD BIOPROCESS CHROM HW | H200: 254 | I200: Std BPG | J200: 228 | K200: 2,054 | L200: 228 | M200: 2,054 | N200: 1,756 | O200: 100% | P200: 021 | Q200: 13 | R200: STD BIOPROCESS CHROM HW | S200: 254 | T200: Std BPG | U200: 199 | V200: 1,793 | W200: 139 | X200: 1,255 | Y200: Yes | Z200: Yes | AA200: 70% | AB200: 15% | AC200: 64%
... 2050 more rows
